Workbook

Sheet QuotationTool
E1: Old Mutual General Insurance Kenya Ltd, Old Mutual Tower| Upper Hill Road | PO Box 43013 | Nairobi 00100, Kenya Tel + 254 2850 000 | Office Cell 0711 065 000 | Website www.oldmutual.co.ke
B5: Attn: | C5: ABSOLOM IRUNGU | J5: [ Page 1/2 of Quotation ]
B6: Date | C6: =TODAY() -> 2025-04-07
B8: RE: | C8: AfyaImara | D8: =IF(OR(C8=Lists!B4,C8=Lists!B5,C8=Lists!B6,C8=Lists!B8),"Family Cover","Children Cover") -> Family Cover
A10: Cover Scope | C10: Inpatient | D10: 10000000 | F10: =IFERROR(VLOOKUP(D10,Lists!$I$5:$J$33,2,FALSE),"Limit not Available") -> Per Family Per Annum
C11: Outpatient | D11: 100000 | F11: Per Person Per Annum | G11: =IFERROR(IF(D11>VLOOKUP(D10,Lists!$I$5:$K$13,3,0),"This OP Limit is not available for the selected IP Limit",""),"Please select IP Limit") -> 
C12: Family Size | D12: M+3
C13: =IF(C8="AfyaImara Seniors","Dental & Optical","") -> 
A14: Cover Option for Junior Only: | G14: =IF(AND($C$8<>Lists!$B$7,QuotationTool!D14<>""),"Please delete this cover option","") -> 
A15: [ Schedule Of Benefits Slected Above Detailed in PAGE 2]
A17: Premiums For Selected Benefits above
B18: Relation | C18: Name | D18: DOB / Age | F18: Inpatient | G18: Individual OP Option | H18: Outpatient | J18: Total
A19: 1 | B19: Principal | D19: Age | E19: 1900-02-11 | F19: =IF(B19="","",IFERROR(VLOOKUP($C$8&$D$14&B19&Sheet1!D19&Sheet1!B19,PricingTable!$F:$N,MATCH(QuotationTool!$D$10,PricingTable!$F$3:$N$3,0),FALSE),"")) -> 68869.84375 | G19: Yes | H19: =IF(OR(B19="",G19="No",G19=""),"",IF($C$8=Lists!$B$7,IFERROR(VLOOKUP($C$8&$D$14&B19&Sheet1!D19&Sheet1!B19,PricingTable!$F$32:$W$53,MATCH(QuotationTool!$D$11,PricingTable!$F$32:$W$32,0),FALSE),""),IF($C$8=Lists!$B$8,IFERROR(VLOOKUP($C$8&$D$14&B19&Sheet1!D19&Sheet1!B19,PricingTable!$F$54:$W$65,MATCH(QuotationTool!$D$11,PricingTable!$F$54:$W$54,0),FALSE),""),IF($F$11="Per Family Per Annum","",IFERROR(VLOOKUP($C$8,PricingTable!$AU$5:$BC$10,PricingTable!$AV$3,FALSE),""))))) -> 35226 | J19: =SUM(F19,H19) -> 104095.8438
A20: 2 | B20: Spouse | D20: Age | E20: 1900-02-08 | F20: =IF(B20="","",IFERROR(VLOOKUP($C$8&$D$14&B20&Sheet1!D20&Sheet1!B20,PricingTable!$F:$N,MATCH(QuotationTool!$D$10,PricingTable!$F$3:$N$3,0),FALSE),"")) -> 48736 | G20: Yes | H20: =IF(OR(B20="",G20="No",G20=""),"",IF($C$8=Lists!$B$7,IFERROR(VLOOKUP($C$8&$D$14&B20&Sheet1!D20&Sheet1!B20,PricingTable!$F$32:$W$53,MATCH(QuotationTool!$D$11,PricingTable!$F$32:$W$32,0),FALSE),""),IF($C$8=Lists!$B$8,IFERROR(VLOOKUP($C$8&$D$14&B20&Sheet1!D20&Sheet1!B20,PricingTable!$F$54:$W$65,MATCH(QuotationTool!$D$11,PricingTable!$F$54:$W$54,0),FALSE),""),IF($F$11="Per Family Per Annum","",IFERROR(VLOOKUP($C$8,PricingTable!$AU$5:$BC$10,PricingTable!$AV$3,FALSE),""))))) -> 35226 | J20: =SUM(F20,H20) -> 83962
A21: 3 | B21: Child | D21: Age | E21: 1900-01-14 | F21: =IF(B21="","",IFERROR(VLOOKUP($C$8&$D$14&B21&Sheet1!D21&Sheet1!B21,PricingTable!$F:$N,MATCH(QuotationTool!$D$10,PricingTable!$F$3:$N$3,0),FALSE),"")) -> 31578 | G21: Yes | H21: =IF(OR(B21="",G21="No",G21=""),"",IF($C$8=Lists!$B$7,IFERROR(VLOOKUP($C$8&$D$14&B21&Sheet1!D21&Sheet1!B21,PricingTable!$F$32:$W$53,MATCH(QuotationTool!$D$11,PricingTable!$F$32:$W$32,0),FALSE),""),IF($C$8=Lists!$B$8,IFERROR(VLOOKUP($C$8&$D$14&B21&Sheet1!D21&Sheet1!B21,PricingTable!$F$54:$W$65,MATCH(QuotationTool!$D$11,PricingTable!$F$54:$W$54,0),FALSE),""),IF($F$11="Per Family Per Annum","",IFERROR(VLOOKUP($C$8,PricingTable!$AU$5:$BC$10,PricingTable!$AV$3,FALSE),""))))) -> 35226 | J21: 66804
A22: 4 | B22: Child | D22: Age | E22: 1900-01-07 | F22: =IF(B22="","",IFERROR(VLOOKUP($C$8&$D$14&B22&Sheet1!D22&Sheet1!B22,PricingTable!$F:$N,MATCH(QuotationTool!$D$10,PricingTable!$F$3:$N$3,0),FALSE),"")) -> 31578 | G22: Yes | H22: =IF(OR(B22="",G22="No",G22=""),"",IF($C$8=Lists!$B$7,IFERROR(VLOOKUP($C$8&$D$14&B22&Sheet1!D22&Sheet1!B22,PricingTable!$F$32:$W$53,MATCH(QuotationTool!$D$11,PricingTable!$F$32:$W$32,0),FALSE),""),IF($C$8=Lists!$B$8,IFERROR(VLOOKUP($C$8&$D$14&B22&Sheet1!D22&Sheet1!B22,PricingTable!$F$54:$W$65,MATCH(QuotationTool!$D$11,PricingTable!$F$54:$W$54,0),FALSE),""),IF($F$11="Per Family Per Annum","",IFERROR(VLOOKUP($C$8,PricingTable!$AU$5:$BC$10,PricingTable!$AV$3,FALSE),""))))) -> 35226 | J22: 66804
A23: 5 | F23: =IF(B23="","",IFERROR(VLOOKUP($C$8&$D$14&B23&Sheet1!D23&Sheet1!B23,PricingTable!$F:$N,MATCH(QuotationTool!$D$10,PricingTable!$F$3:$N$3,0),FALSE),"")) ->  | H23: =IF(OR(B23="",G23="No",G23=""),"",IF($C$8=Lists!$B$7,IFERROR(VLOOKUP($C$8&$D$14&B23&Sheet1!D23&Sheet1!B23,PricingTable!$F$32:$W$53,MATCH(QuotationTool!$D$11,PricingTable!$F$32:$W$32,0),FALSE),""),IF($C$8=Lists!$B$8,IFERROR(VLOOKUP($C$8&$D$14&B23&Sheet1!D23&Sheet1!B23,PricingTable!$F$54:$W$65,MATCH(QuotationTool!$D$11,PricingTable!$F$54:$W$54,0),FALSE),""),IF($F$11="Per Family Per Annum","",IFERROR(VLOOKUP($C$8,PricingTable!$AU$5:$BC$10,PricingTable!$AV$3,FALSE),""))))) ->  | J23: 0
A24: 6 | F24: =IF(B24="","",IFERROR(VLOOKUP($C$8&$D$14&B24&Sheet1!D24&Sheet1!B24,PricingTable!$F:$N,MATCH(QuotationTool!$D$10,PricingTable!$F$3:$N$3,0),FALSE),"")) ->  | H24: =IF(OR(B24="",G24="No",G24=""),"",IF($C$8=Lists!$B$7,IFERROR(VLOOKUP($C$8&$D$14&B24&Sheet1!D24&Sheet1!B24,PricingTable!$F$32:$W$53,MATCH(QuotationTool!$D$11,PricingTable!$F$32:$W$32,0),FALSE),""),IF($C$8=Lists!$B$8,IFERROR(VLOOKUP($C$8&$D$14&B24&Sheet1!D24&Sheet1!B24,PricingTable!$F$54:$W$65,MATCH(QuotationTool!$D$11,PricingTable!$F$54:$W$54,0),FALSE),""),IF($F$11="Per Family Per Annum","",IFERROR(VLOOKUP($C$8,PricingTable!$AU$5:$BC$10,PricingTable!$AV$3,FALSE),""))))) ->  | J24: 0
A25: 7 | F25: =IF(B25="","",IFERROR(VLOOKUP($C$8&$D$14&B25&Sheet1!D25&Sheet1!B25,PricingTable!$F:$N,MATCH(QuotationTool!$D$10,PricingTable!$F$3:$N$3,0),FALSE),"")) ->  | H25: =IF(OR(B25="",G25="No",G25=""),"",IF($C$8=Lists!$B$7,IFERROR(VLOOKUP($C$8&$D$14&B25&Sheet1!D25&Sheet1!B25,PricingTable!$F$32:$W$53,MATCH(QuotationTool!$D$11,PricingTable!$F$32:$W$32,0),FALSE),""),IF($C$8=Lists!$B$8,IFERROR(VLOOKUP($C$8&$D$14&B25&Sheet1!D25&Sheet1!B25,PricingTable!$F$54:$W$65,MATCH(QuotationTool!$D$11,PricingTable!$F$54:$W$54,0),FALSE),""),IF($F$11="Per Family Per Annum","",IFERROR(VLOOKUP($C$8,PricingTable!$AU$5:$BC$10,PricingTable!$AV$3,FALSE),""))))) ->  | J25: =SUM(F25,H25) -> 0
A26: 8 | F26: =IF(B26="","",IFERROR(VLOOKUP($C$8&$D$14&B26&Sheet1!D26&Sheet1!B26,PricingTable!$F:$N,MATCH(QuotationTool!$D$10,PricingTable!$F$3:$N$3,0),FALSE),"")) ->  | H26: =IF(OR(B26="",G26="No",G26=""),"",IF($C$8=Lists!$B$7,IFERROR(VLOOKUP($C$8&$D$14&B26&Sheet1!D26&Sheet1!B26,PricingTable!$F$32:$W$53,MATCH(QuotationTool!$D$11,PricingTable!$F$32:$W$32,0),FALSE),""),IF($C$8=Lists!$B$8,IFERROR(VLOOKUP($C$8&$D$14&B26&Sheet1!D26&Sheet1!B26,PricingTable!$F$54:$W$65,MATCH(QuotationTool!$D$11,PricingTable!$F$54:$W$54,0),FALSE),""),IF($F$11="Per Family Per Annum","",IFERROR(VLOOKUP($C$8,PricingTable!$AU$5:$BC$10,PricingTable!$AV$3,FALSE),""))))) ->  | J26: =SUM(F26,H26) -> 0
A27: 9 | F27: =IF(B27="","",IFERROR(VLOOKUP($C$8&$D$14&B27&Sheet1!D27&Sheet1!B27,PricingTable!$F:$N,MATCH(QuotationTool!$D$10,PricingTable!$F$3:$N$3,0),FALSE),"")) ->  | H27: =IF(OR(B27="",G27="No",G27=""),"",IF($C$8=Lists!$B$7,IFERROR(VLOOKUP($C$8&$D$14&B27&Sheet1!D27&Sheet1!B27,PricingTable!$F$32:$W$53,MATCH(QuotationTool!$D$11,PricingTable!$F$32:$W$32,0),FALSE),""),IF($C$8=Lists!$B$8,IFERROR(VLOOKUP($C$8&$D$14&B27&Sheet1!D27&Sheet1!B27,PricingTable!$F$54:$W$65,MATCH(QuotationTool!$D$11,PricingTable!$F$54:$W$54,0),FALSE),""),IF($F$11="Per Family Per Annum","",IFERROR(VLOOKUP($C$8,PricingTable!$AU$5:$BC$10,PricingTable!$AV$3,FALSE),""))))) ->  | J27: =SUM(F27,H27) -> 0
A28: 10 | F28: =IF(B28="","",IFERROR(VLOOKUP($C$8&$D$14&B28&Sheet1!D28&Sheet1!B28,PricingTable!$F:$N,MATCH(QuotationTool!$D$10,PricingTable!$F$3:$N$3,0),FALSE),"")) ->  | H28: =IF(OR(B28="",G28="No",G28=""),"",IF($C$8=Lists!$B$7,IFERROR(VLOOKUP($C$8&$D$14&B28&Sheet1!D28&Sheet1!B28,PricingTable!$F$32:$W$53,MATCH(QuotationTool!$D$11,PricingTable!$F$32:$W$32,0),FALSE),""),IF($C$8=Lists!$B$8,IFERROR(VLOOKUP($C$8&$D$14&B28&Sheet1!D28&Sheet1!B28,PricingTable!$F$54:$W$65,MATCH(QuotationTool!$D$11,PricingTable!$F$54:$W$54,0),FALSE),""),IF($F$11="Per Family Per Annum","",IFERROR(VLOOKUP($C$8,PricingTable!$AU$5:$BC$10,PricingTable!$AV$3,FALSE),""))))) ->  | J28: 0
G29: =IF(OR($C$8=Lists!$B$7,$C$8=Lists!$B$8),"",IF($F$11="Per Family Per Annum","OP Per Family","")) ->  | H29: =IF(OR(G29=""),"",IFERROR(VLOOKUP(C8&D12,PricingTable!$AG:$AQ,PricingTable!$AI$3,FALSE),"")) ->  | J29: =H29 -> 
H30: =IF(C8="AfyaImara Seniors","Dental & Optical:","") ->  | J30: =IF(AND(C8="AfyaImara Seniors",D13="Yes"),32352,0) -> 0
G31: Total Premiums | J31: =SUM(J19:J30,F30) -> 321665.8438
G32: Stamp Duty | I32: Yes | J32: =IF(I32="Yes",40,0) -> 40
G33: TL & PHPF - 0.45% | J33: =J31*0.45% -> 1447.496297
G34: Total Payable | J34: =SUM(J31:J33) -> 323153.34
A35: Notes:
A36: =IF(VLOOKUP(Sheet1!F36,Lists!$AB$2:$AG$13,MATCH(QuotationTool!$C$8,Lists!$AB$2:$AG$2,0),FALSE)=0,"",VLOOKUP(Sheet1!F36,Lists!$AB$2:$AG$13,MATCH(QuotationTool!$C$8,Lists!$AB$2:$AG$2,0),FALSE)) -> a) AFYAIMARA is a Comprehensive Family cover, Providing Inpatient and Outpatient Benefits
A37: =IF(VLOOKUP(Sheet1!F37,Lists!$AB$2:$AG$13,MATCH(QuotationTool!$C$8,Lists!$AB$2:$AG$2,0),FALSE)=0,"",VLOOKUP(Sheet1!F37,Lists!$AB$2:$AG$13,MATCH(QuotationTool!$C$8,Lists!$AB$2:$AG$2,0),FALSE)) -> b) A Waiting Period of 28 Days for Illness Claims and 60 Days for Surgical Claims Applies. Accidents are covered immediately.
A38: =IF(VLOOKUP(Sheet1!F38,Lists!$AB$2:$AG$13,MATCH(QuotationTool!$C$8,Lists!$AB$2:$AG$2,0),FALSE)=0,"",VLOOKUP(Sheet1!F38,Lists!$AB$2:$AG$13,MATCH(QuotationTool!$C$8,Lists!$AB$2:$AG$2,0),FALSE)) -> c) Applicants Above 60 Years are required to submit a medical report in the prescribed manner for eligibility
A39: =IF(VLOOKUP(Sheet1!F39,Lists!$AB$2:$AG$13,MATCH(QuotationTool!$C$8,Lists!$AB$2:$AG$2,0),FALSE)=0,"",VLOOKUP(Sheet1!F39,Lists!$AB$2:$AG$13,MATCH(QuotationTool!$C$8,Lists!$AB$2:$AG$2,0),FALSE)) -> d) Eligibility is for applicants from 0-65 Years of age. Existing members can continue renewing in the scheme for life subject to renewal review by Old Mutual General Insurance Company Ltd.
A40: =IF(VLOOKUP(Sheet1!F40,Lists!$AB$2:$AG$13,MATCH(QuotationTool!$C$8,Lists!$AB$2:$AG$2,0),FALSE)=0,"",VLOOKUP(Sheet1!F40,Lists!$AB$2:$AG$13,MATCH(QuotationTool!$C$8,Lists!$AB$2:$AG$2,0),FALSE)) -> e) A Co-Pay of KES 500 is applicable in all visits. KES 2,000 Co-Pay is applicable at Aga Khan Hospital - Nairobi, Nairobi Hospital,Pandya Hospital,Karen Hospital,AAR and MP Shah
A41: =IF(VLOOKUP(Sheet1!F41,Lists!$AB$2:$AG$13,MATCH(QuotationTool!$C$8,Lists!$AB$2:$AG$2,0),FALSE)=0,"",VLOOKUP(Sheet1!F41,Lists!$AB$2:$AG$13,MATCH(QuotationTool!$C$8,Lists!$AB$2:$AG$2,0),FALSE)) -> f) Application Forms Must be dully filled and Submitted for Processing & Consideration.
A42: =IF(VLOOKUP(Sheet1!F42,Lists!$AB$2:$AG$13,MATCH(QuotationTool!$C$8,Lists!$AB$2:$AG$2,0),FALSE)=0,"",VLOOKUP(Sheet1!F42,Lists!$AB$2:$AG$13,MATCH(QuotationTool!$C$8,Lists!$AB$2:$AG$2,0),FALSE)) -> g) Premiums: Payment be paid in full to activate cover, unless a payment plan is approved.
A43: =IF(VLOOKUP(Sheet1!F43,Lists!$AB$2:$AG$13,MATCH(QuotationTool!$C$8,Lists!$AB$2:$AG$2,0),FALSE)=0,"",VLOOKUP(Sheet1!F43,Lists!$AB$2:$AG$13,MATCH(QuotationTool!$C$8,Lists!$AB$2:$AG$2,0),FALSE)) -> h) Critical Illness lumpsum payment of KES 750,000 is payable upon first positive diagnosis for Cancer, stroke, heart attack, renal/kidney failure, paraplegia or paralysis. This embedded cover has a 28-day waiting period.
A45: Issued By; | C45: Samuel Maina
A46: Designation | C46: Business Development Manager
A47: For: Old Mutual Group
C49: =" This Quote is Valid for 90 Days up to " -> This Quote is Valid for 90 Days up to | F49: =TODAY()+90 -> 2025-07-06

Sheet Lists (hidden)
AC2: =B4 -> AfyaImara | AD2: =B5 -> AfyaImara County | AE2: =B6 -> AfyaImara Seniors | AF2: =B7 -> AfyaImara Junior | AG2: =B8 -> AfyaImara Executive
Q3: Product | R3: Option | S3: Combination | T3: Inpatient Options | U3: Outpatient Options | V3: Maternity Options | W3: Dental & Optical | X3: OP Limit | AB3: 1 | AC3: a) AFYAIMARA is a Comprehensive Family cover, Providing Inpatient and Outpatient Benefits | AD3: a) AFYAIMARA COUNTY is a LOW COST Comprehensive Family cover, Providing Inpatient & Outpatient Benefits | AE3: a) AFYAIMARA SENIORS is a Comprehensive Individual Cover, Providing Inpatient and Optional Outpatient Benefits | AF3: a) AFYAIMARA JUNIOR is a Comprehensive CHILDREN COVER, Providing Inpatient and Outpatient benefits. | AG3: a) AFYAIMARA EXECUTIVE is a Comprehensive Individual Cover, Providing Inpatient and Optional Outpatient Benefits
B4: AfyaImara | F4: Limits | G4: Product | H4: Option | O4: Ages | Q4: AfyaImara | R4: 1 | S4: =Q4&R4 -> AfyaImara1 | T4: 500000 | U4: 50000 | V4: 40000 | W4: 15,000 Each | X4: 60000 | AB4: 2 | AC4: b) A Waiting Period of 28 Days for Illness Claims and 60 Days for Surgical Claims Applies. Accidents are covered immediately. | AD4: b) A Waiting Period of 28 Days for Illness Claims and 60 Days for Surgical Claims Applies. Accidents are covered immediately. | AE4: b) Cover is Designed for SENIOR CITIZENS above 65 Years. | AF4: b) Cover is Designed for Children, 18 Years and Below. | AG4: b) Cover is Designed to offer High Cover Limits, Comprehensive Provider Access Across and WorldWide Cover Scope
B5: AfyaImara County | F5: Inpatient | G5: =QuotationTool!$C$8 -> AfyaImara | I5: - Select - | K5: OP Limit | O5: Child (0 -18 yrs) | Q5: AfyaImara | R5: 2 | S5: =Q5&R5 -> AfyaImara2 | T5: 1000000 | U5: 60000 | V5: 75000 | W5: 30,000 Dental & 25,000 Optical | X5: 60000 | AB5: 3 | AC5: c) Applicants Above 60 Years are required to submit a medical report in the prescribed manner for eligibility | AD5: c) Applicants Above 60 Years are required to submit a medical report in the prescribed manner for eligibility | AE5: c) Eligibility is for applicants from 65-80 Years of age. One can then renew cover for LIFE. | AF5: c) A Waiting Period of 28 Days for Illness Claims and 60 Days for Surgical Claims Applies. Accidents are covered immediately. | AG5: c) Eligibility is for applicants from 0-80 Years of age. One can renew cover until the age of 85 years.
B6: AfyaImara Seniors | G6: =QuotationTool!$C$8 -> AfyaImara | H6: 1 | I6: =IFERROR(VLOOKUP(G6&H6,$S$3:$T$24,2,FALSE),"") -> 500000 | J6: Per Family Per Annum | K6: =IFERROR(VLOOKUP(G6&H6,$S$3:$X$24,6,FALSE),"") -> 60000 | O6: 19 yrs - 29 yrs | Q6: AfyaImara | R6: 3 | S6: =Q6&R6 -> AfyaImara3 | T6: 3000000 | U6: 100000 | V6: 100000 | X6: 100000 | AB6: 4 | AC6: d) Eligibility is for applicants from 0-65 Years of age. Existing members can continue renewing in the scheme for life subject to renewal review by Old Mutual General Insurance Company Ltd. | AD6: d) Eligibility is for applicants from 0-65 Years of age. One can renew cover until age 70, where they may transition to AfyaImara Seniors | AE6: d) Applicants are required to submit a medical report in the prescribed manner for eligibility | AF6: d) Application Forms Must be dully filled and Submitted for Processing & Consideration. | AG6: d) Applicants Above 60 Years are required to submit a medical report in the prescribed manner for eligibility
B7: AfyaImara Junior | G7: =QuotationTool!$C$8 -> AfyaImara | H7: 2 | I7: =IFERROR(VLOOKUP(G7&H7,$S$3:$T$24,2,FALSE),"") -> 1000000 | J7: Per Family Per Annum | K7: =IFERROR(VLOOKUP(G7&H7,$S$3:$X$24,6,FALSE),"") -> 60000 | O7: 30 yrs - 40 yrs | Q7: AfyaImara | R7: 4 | S7: =Q7&R7 -> AfyaImara4 | T7: 5000000 | U7: 150000 | X7: 200000 | AB7: 5 | AC7: e) A Co-Pay of KES 500 is applicable in all visits. KES 2,000 Co-Pay is applicable at Aga Khan Hospital - Nairobi, Nairobi Hospital,Pandya Hospital,Karen Hospital,AAR and MP Shah | AD7: e) A Co-Pay of KES 200 is applicable in all visits. | AE7: e) A Waiting Period of 28 Days for Illness Claims and 60 Days for Surgical Claims Applies. Accidents are covered immediately. | AF7: e) Premiums: Payment be paid in full to activate cover, unless a payment plan is approved. | AG7: e) A Waiting Period of 28 Days for Illness Claims and 60 Days for Surgical Claims Applies. Accidents are covered immediately.
B8: AfyaImara Executive | G8: =QuotationTool!$C$8 -> AfyaImara | H8: 3 | I8: 3000000 | J8: Per Family Per Annum | K8: 100000 | O8: 41 yrs - 50 yrs | Q8: AfyaImara | R8: 5 | S8: =Q8&R8 -> AfyaImara5 | T8: 10000000 | U8: 200000 | X8: 200000 | AB8: 6 | AC8: f) Application Forms Must be dully filled and Submitted for Processing & Consideration. | AD8: f) Application Forms Must be dully filled and Submitted for Processing & Consideration. | AE8: f) A Co-Pay of Kes 1,000 is applicable in all visits. | AF8: f) Services provided under this product can be accessed on the Hospital Network specified under each option below | AG8: f) Application Forms Must be dully filled and Submitted for Processing & Consideration.
G9: =QuotationTool!$C$8 -> AfyaImara | H9: 4 | I9: 5000000 | J9: Per Family Per Annum | K9: 200000 | O9: 51 yrs - 65 yrs | AB9: 7 | AC9: g) Premiums: Payment be paid in full to activate cover, unless a payment plan is approved. | AD9: g) Premiums: Payment be paid in full to activate cover, unless a payment plan is approved. | AE9: f) Application Forms Must be dully filled and Submitted for Processing & Consideration. | AF9: *Unlimited Panel Option | AG9: g) Premiums: Payment be paid in full to activate cover, unless a payment plan is approved.
B10: Principal | G10: =QuotationTool!$C$8 -> AfyaImara | H10: 5 | I10: 10000000 | J10: Per Family Per Annum | K10: 200000 | O10: 66 Years and Above | Q10: =$B$5 -> AfyaImara County | R10: 1 | S10: =Q10&R10 -> AfyaImara County1 | T10: 100000 | U10: 25000 | V10: 20000 | X10: 25000 | AB10: 8 | AC10: h) Critical Illness lumpsum payment of KES 750,000 is payable upon first positive diagnosis for Cancer, stroke, heart attack, renal/kidney failure, paraplegia or paralysis. This embedded cover has a 28-day waiting period. | AE10: h) Premiums: Payment be paid in full to activate cover, unless a payment plan is approved. | AF10: *Gertrude's Hospital Option
B11: Spouse | G11: =QuotationTool!$C$8 -> AfyaImara | H11: 6 | J11: Per Family Per Annum | Q11: =$B$5 -> AfyaImara County | R11: 2 | S11: AfyaImara County2 | T11: 250000 | U11: 40000 | V11: 40000 | X11: 40000 | AB11: 9
B12: Child | G12: =QuotationTool!$C$8 -> AfyaImara | H12: 7 | J12: Per Family Per Annum | Q12: =$B$5 -> AfyaImara County | R12: 3 | S12: AfyaImara County3 | T12: 500000 | U12: 50000 | X12: 50000 | AB12: 10
G13: =QuotationTool!$C$8 -> AfyaImara | H13: 8 | J13: Per Family Per Annum | Q13: =$B$5 -> AfyaImara County | R13: 4 | S13: AfyaImara County4 | T13: 1000000 | X13: 50000 | AB13: 11
F14: Outpatient | G14: =QuotationTool!$C$8 -> AfyaImara | I14: - Select - | Q14: =$B$6 -> AfyaImara Seniors | R14: 1 | S14: AfyaImara Seniors1 | T14: 500000 | U14: 100000 | X14: 100000
G15: =QuotationTool!$C$8 -> AfyaImara | H15: 1 | I15: =IF(G15="AfyaImara Executive",200000,IFERROR(VLOOKUP(G15&H15,$S$4:$U$24,3,FALSE),"")) -> 50000 | J15: Per Person Per Annum | Q15: =$B$6 -> AfyaImara Seniors | R15: 2 | S15: AfyaImara Seniors2 | T15: 1000000 | U15: 150000 | X15: 150000 | AB15: Hospital List
G16: =QuotationTool!$C$8 -> AfyaImara | H16: 2 | I16: =IF(G15="AfyaImara Executive",250000,IFERROR(VLOOKUP(G16&H16,$S$4:$U$24,3,FALSE),"")) -> 60000 | J16: Per Family Per Annum | Q16: =$B$6 -> AfyaImara Seniors | R16: 3 | S16: AfyaImara Seniors3 | T16: 3000000 | U16: 200000 | X16: 200000 | AB16: 1 | AF16: Unlimited UAP Hospital Panel Access
B17: Designations | G17: =QuotationTool!$C$8 -> AfyaImara | H17: 3 | I17: =IFERROR(VLOOKUP(G17&H17,$S$4:$U$24,3,FALSE),"") -> 100000 | Q17: =$B$6 -> AfyaImara Seniors | R17: 4 | S17: AfyaImara Seniors4 | T17: 5000000 | X17: 200000 | AB17: 2 | AF17: Limited Hospital Panel Access
B18: Agent | G18: =QuotationTool!$C$8 -> AfyaImara | H18: 4 | I18: 150000 | Q18: =$B$6 -> AfyaImara Seniors | R18: 5 | S18: =Q18&R18 -> AfyaImara Seniors5 | T18: 10000000 | X18: 200000
B19: Business Development Officer | G19: =QuotationTool!$C$8 -> AfyaImara | H19: 5 | I19: 200000 | Q19: =$B$7 -> AfyaImara Junior | R19: 1 | S19: =Q19&R19 -> AfyaImara Junior1 | T19: 500000 | U19: 50000 | X19: 50000
B20: Unit Manager | G20: =QuotationTool!$C$8 -> AfyaImara | H20: 6 | Q20: =$B$7 -> AfyaImara Junior | R20: 2 | S20: AfyaImara Junior2 | T20: 1000000 | U20: 75000 | X20: 75000
B21: Sales Advisor | G21: =QuotationTool!$C$8 -> AfyaImara | H21: 7 | Q21: =$B$7 -> AfyaImara Junior | R21: 3 | S21: AfyaImara Junior3 | T21: 3000000 | U21: 100000 | X21: 100000
B22: Financial Advisor | G22: =QuotationTool!$C$8 -> AfyaImara | H22: 8 | Q22: =$B$7 -> AfyaImara Junior | R22: 4 | S22: AfyaImara Junior4 | T22: 5000000 | U22: 150000 | X22: 150000
B23: Business Development Manager | G23: =QuotationTool!$C$8 -> AfyaImara | H23: 9 | Q23: =$B$8 -> AfyaImara Executive | R23: 1 | S23: AfyaImara Executive1 | T23: 10000000 | U23: 250000 | X23: 250000
B24: Retail Manager | F24: Maternity | G24: =QuotationTool!$C$8 -> AfyaImara | I24: - Select - | Q24: =$B$8 -> AfyaImara Executive | R24: 2 | S24: AfyaImara Executive2 | T24: 20000000 | U24: 250000 | X24: 250000
G25: =QuotationTool!$C$8 -> AfyaImara | H25: 1 | I25: =IFERROR(VLOOKUP(G25&H25,$S$3:$V$24,4,FALSE),"") -> 40000 | J25: Per Family Per Annum | Q25: Relation
G26: =QuotationTool!$C$8 -> AfyaImara | H26: 2 | I26: =IFERROR(VLOOKUP(G26&H26,$S$3:$V$24,4,FALSE),"") -> 75000 | J26: Per Family Per Annum | Q26: Product | R26: Option | S26: Comb | T26: Relation Options
G27: =QuotationTool!$C$8 -> AfyaImara | H27: 3 | I27: 100000 | J27: Per Family Per Annum | Q27: AfyaImara | R27: 1 | S27: =Q27&R27 -> AfyaImara1 | T27: Principal
G28: =QuotationTool!$C$8 -> AfyaImara | H28: 4 | I28: 0 | J28: Per Family Per Annum | Q28: AfyaImara | R28: 2 | S28: AfyaImara2 | T28: Spouse
G29: =QuotationTool!$C$8 -> AfyaImara | H29: 5 | I29: 0 | Q29: AfyaImara | R29: 3 | S29: AfyaImara3 | T29: Child
F30: Dental & Optical | G30: =QuotationTool!$C$8 -> AfyaImara | I30: - Select - | Q30: =$B$7 -> AfyaImara Junior | R30: 1 | S30: AfyaImara Junior1 | T30: Principal
G31: =QuotationTool!$C$8 -> AfyaImara | H31: 1 | I31: =IFERROR(VLOOKUP(G31&H31,$S$3:$W$24,5,FALSE),"") -> 15,000 Each | J31: Per Person Per Annum | Q31: =$B$7 -> AfyaImara Junior | R31: 2 | S31: AfyaImara Junior2 | T31: Child 1
G32: =QuotationTool!$C$8 -> AfyaImara | H32: 2 | I32: =IFERROR(VLOOKUP(G32&H32,$S$3:$W$24,5,FALSE),"") -> 30,000 Dental & 25,000 Optical | J32: Per Person Per Annum | Q32: =$B$7 -> AfyaImara Junior | R32: 3 | S32: AfyaImara Junior3 | T32: Child 2
G33: =QuotationTool!$C$8 -> AfyaImara | H33: 3 | I33: 0 | Q33: AfyaImara Junior | R33: 4 | S33: AfyaImara Junior4 | T33: Child 3
Q34: AfyaImara Junior | R34: 5 | S34: AfyaImara Junior5 | T34: Child 4
Q35: AfyaImara Junior | R35: 6 | S35: AfyaImara Junior6 | T35: Child 5
F36: Relation | G36: Product | H36: Option | I36: Relation | Q36: AfyaImara Junior | R36: 7 | S36: AfyaImara Junior7 | T36: Child 6
G37: =QuotationTool!$C$8 -> AfyaImara | H37: 1 | I37: =IFERROR(VLOOKUP(G37&H37,S26:T49,2,FALSE),"") -> Principal | Q37: AfyaImara Junior | R37: 8 | S37: AfyaImara Junior8 | T37: Child 7
G38: =QuotationTool!$C$8 -> AfyaImara | H38: 2 | I38: =IFERROR(VLOOKUP(G38&H38,S27:T49,2,FALSE),"") -> Spouse | Q38: AfyaImara Junior | R38: 9 | S38: AfyaImara Junior9 | T38: Child 8
G39: =QuotationTool!$C$8 -> AfyaImara | H39: 3 | I39: =IFERROR(VLOOKUP(G39&H39,S28:T49,2,FALSE),"") -> Child | Q39: AfyaImara Junior | R39: 10 | S39: AfyaImara Junior10 | T39: Child 9
G40: =QuotationTool!$C$8 -> AfyaImara | H40: 4 | I40: =IFERROR(VLOOKUP(G40&H40,S29:T50,2,FALSE),"") ->  | Q40: AfyaImara Junior | R40: 11 | S40: AfyaImara Junior11 | T40: Child 10
G41: =QuotationTool!$C$8 -> AfyaImara | H41: 5 | I41: =IFERROR(VLOOKUP(G41&H41,S30:T51,2,FALSE),"") ->  | Q41: =$B$6 -> AfyaImara Seniors | R41: 1 | S41: AfyaImara Seniors1 | T41: Principal
G42: =QuotationTool!$C$8 -> AfyaImara | H42: 6 | I42: =IFERROR(VLOOKUP(G42&H42,S31:T52,2,FALSE),"") ->  | Q42: =$B$6 -> AfyaImara Seniors | R42: 2 | S42: AfyaImara Seniors2 | T42: Spouse
G43: =QuotationTool!$C$8 -> AfyaImara | H43: 7 | I43: =IFERROR(VLOOKUP(G43&H43,S32:T53,2,FALSE),"") ->  | Q43: =$B$6 -> AfyaImara Seniors | R43: 3 | S43: AfyaImara Seniors3 | T43: Child
G44: =QuotationTool!$C$8 -> AfyaImara | H44: 8 | I44: =IFERROR(VLOOKUP(G44&H44,S33:T60,2,FALSE),"") ->  | Q44: AfyaImara County | R44: 1 | S44: AfyaImara County1 | T44: Principal
G45: =QuotationTool!$C$8 -> AfyaImara | H45: 9 | I45: =IFERROR(VLOOKUP(G45&H45,S34:T61,2,FALSE),"") ->  | Q45: AfyaImara County | R45: 2 | S45: AfyaImara County2 | T45: Spouse
G46: =QuotationTool!$C$8 -> AfyaImara | H46: 10 | I46: =IFERROR(VLOOKUP(G46&H46,S35:T62,2,FALSE),"") ->  | Q46: AfyaImara County | R46: 3 | S46: AfyaImara County3 | T46: Child
Q47: =$B$8 -> AfyaImara Executive | R47: 1 | S47: AfyaImara Executive1 | T47: Principal
Q48: =$B$8 -> AfyaImara Executive | R48: 2 | S48: AfyaImara Executive2 | T48: Spouse
Q49: =$B$8 -> AfyaImara Executive | R49: 3 | S49: AfyaImara Executive3 | T49: Child
F50: Hospital Access
F51: Notes | G51: Product | H51: Option | I51: Note
G52: =QuotationTool!$C$8 -> AfyaImara | H52: 1 | I52: =IF(VLOOKUP(H52,$AB$16:$AG$17,MATCH(G52,$AB$2:$AG$2,0),FALSE)=0,"",VLOOKUP(H52,$AB$16:$AG$17,MATCH(G52,$AB$2:$AG$2,0),FALSE)) -> 
G53: =QuotationTool!$C$8 -> AfyaImara | H53: 2 | I53: =IF(VLOOKUP(H53,$AB$16:$AG$17,MATCH(G53,$AB$2:$AG$2,0),FALSE)=0,"",VLOOKUP(H53,$AB$16:$AG$17,MATCH(G53,$AB$2:$AG$2,0),FALSE)) -> 
B56: AGE RANGES
B57: AfyaImara | C57: AfyaImara County | D57: AfyaImara Seniors | E57: AfyaImara Junior | F57: AfyaImara Executive
B58: Child (0 -18 yrs) | C58: Child (0 -18 yrs)
B59: 19 yrs - 29 yrs | C59: 19 yrs - 29 yrs
B60: 30 yrs - 40 yrs | C60: 30 yrs - 40 yrs
B61: 41 yrs - 50 yrs | C61: 41 yrs - 50 yrs
B62: 51 yrs - 65 yrs | C62: 51 yrs - 70 yrs
B63: 66 Years and Above

Sheet Sheet1 (hidden)
B1: - Product - HospitalAccess- Relation - Age Band - ChildNo
K13: - How Age is computed
K14: - Combination
K15: - Combination in rates table
K16: - Lookup benefits
K17: - Test
B18: Count of Child | C18: Comp Age | D18: Age-Band | K18: - add logo, and look
B19: =IF(QuotationTool!B19="Child",IF(QuotationTool!$C$8="AfyaImara Junior","Child"&COUNTIF(QuotationTool!B$19:B19,"Child"),""),"") ->  | C19: =IF(QuotationTool!D19="Age",QuotationTool!E19,(TODAY()-QuotationTool!E19)/365) -> 42 | D19: =IF(AND(QuotationTool!$C$8=Lists!$B$8,QuotationTool!B19<>"",C19>=65),"65 yrs - 80 yrs", IF(AND(QuotationTool!$C$8=Lists!$B$6,QuotationTool!B19<>"",C19>=65),"65 Years and Above",IF(QuotationTool!B19="","",IF(AND(C19>0,C19<19),Lists!$O$5,IF(AND(C19>=19,C19<30),Lists!$O$6,IF(AND(C19>=30,C19<41),Lists!$O$7,IF(AND(C19>=41,C19<51),Lists!$O$8,IF(AND(C19>=51,C19<=65),Lists!$O$9,IF(AND(C19>=66),Lists!$O$10,"Check Age"))))))))) -> 41 yrs - 50 yrs | K19: - add printing
B20: =IF(QuotationTool!B20="Child",IF(QuotationTool!$C$8="AfyaImara Junior","Child"&COUNTIF(QuotationTool!B$19:B20,"Child"),""),"") ->  | C20: =IF(QuotationTool!D20="Age",QuotationTool!E20,(TODAY()-QuotationTool!E20)/365) -> 39 | D20: =IF(AND(QuotationTool!$C$8=Lists!$B$8,QuotationTool!B20<>"",C20>=65),"65 yrs - 80 yrs", IF(AND(QuotationTool!$C$8=Lists!$B$6,QuotationTool!B20<>"",C20>=65),"65 Years and Above",IF(QuotationTool!B20="","",IF(AND(C20>0,C20<19),Lists!$O$5,IF(AND(C20>=19,C20<30),Lists!$O$6,IF(AND(C20>=30,C20<41),Lists!$O$7,IF(AND(C20>=41,C20<51),Lists!$O$8,IF(AND(C20>=51,C20<=65),Lists!$O$9,IF(AND(C20>=66),Lists!$O$10,"Check Age"))))))))) -> 30 yrs - 40 yrs | K20: - test
B21: =IF(QuotationTool!B21="Child",IF(QuotationTool!$C$8="AfyaImara Junior","Child"&COUNTIF(QuotationTool!B$19:B21,"Child"),""),"") ->  | C21: =IF(QuotationTool!D21="Age",QuotationTool!E21,(TODAY()-QuotationTool!E21)/365) -> 14 | D21: =IF(AND(QuotationTool!$C$8=Lists!$B$8,QuotationTool!B21<>"",C21>=65),"65 yrs - 80 yrs", IF(AND(QuotationTool!$C$8=Lists!$B$6,QuotationTool!B21<>"",C21>=65),"65 Years and Above",IF(QuotationTool!B21="","",IF(AND(C21>0,C21<19),Lists!$O$5,IF(AND(C21>=19,C21<30),Lists!$O$6,IF(AND(C21>=30,C21<41),Lists!$O$7,IF(AND(C21>=41,C21<51),Lists!$O$8,IF(AND(C21>=51,C21<=65),Lists!$O$9,IF(AND(C21>=66),Lists!$O$10,"Check Age"))))))))) -> Child (0 -18 yrs) | K21: - complete
B22: =IF(QuotationTool!B22="Child",IF(QuotationTool!$C$8="AfyaImara Junior","Child"&COUNTIF(QuotationTool!B$19:B22,"Child"),""),"") ->  | C22: =IF(QuotationTool!D22="Age",QuotationTool!E22,(TODAY()-QuotationTool!E22)/365) -> 7 | D22: =IF(AND(QuotationTool!$C$8=Lists!$B$8,QuotationTool!B22<>"",C22>=65),"65 yrs - 80 yrs", IF(AND(QuotationTool!$C$8=Lists!$B$6,QuotationTool!B22<>"",C22>=65),"65 Years and Above",IF(QuotationTool!B22="","",IF(AND(C22>0,C22<19),Lists!$O$5,IF(AND(C22>=19,C22<30),Lists!$O$6,IF(AND(C22>=30,C22<41),Lists!$O$7,IF(AND(C22>=41,C22<51),Lists!$O$8,IF(AND(C22>=51,C22<=65),Lists!$O$9,IF(AND(C22>=66),Lists!$O$10,"Check Age"))))))))) -> Child (0 -18 yrs)
B23: =IF(QuotationTool!B23="Child",IF(QuotationTool!$C$8="AfyaImara Junior","Child"&COUNTIF(QuotationTool!B$19:B23,"Child"),""),"") ->  | C23: =IF(QuotationTool!D23="Age",QuotationTool!E23,(TODAY()-QuotationTool!E23)/365) -> 125.3534247 | D23: =IF(AND(QuotationTool!$C$8=Lists!$B$8,QuotationTool!B23<>"",C23>=65),"65 yrs - 80 yrs", IF(AND(QuotationTool!$C$8=Lists!$B$6,QuotationTool!B23<>"",C23>=65),"65 Years and Above",IF(QuotationTool!B23="","",IF(AND(C23>0,C23<19),Lists!$O$5,IF(AND(C23>=19,C23<30),Lists!$O$6,IF(AND(C23>=30,C23<41),Lists!$O$7,IF(AND(C23>=41,C23<51),Lists!$O$8,IF(AND(C23>=51,C23<=65),Lists!$O$9,IF(AND(C23>=66),Lists!$O$10,"Check Age"))))))))) -> 
B24: =IF(QuotationTool!B24="Child",IF(QuotationTool!$C$8="AfyaImara Junior","Child"&COUNTIF(QuotationTool!B$19:B24,"Child"),""),"") ->  | C24: =IF(QuotationTool!D24="Age",QuotationTool!E24,(TODAY()-QuotationTool!E24)/365) -> 125.3534247 | D24: =IF(AND(QuotationTool!$C$8=Lists!$B$8,QuotationTool!B24<>"",C24>=65),"65 yrs - 80 yrs", IF(AND(QuotationTool!$C$8=Lists!$B$6,QuotationTool!B24<>"",C24>=65),"65 Years and Above",IF(QuotationTool!B24="","",IF(AND(C24>0,C24<19),Lists!$O$5,IF(AND(C24>=19,C24<30),Lists!$O$6,IF(AND(C24>=30,C24<41),Lists!$O$7,IF(AND(C24>=41,C24<51),Lists!$O$8,IF(AND(C24>=51,C24<=65),Lists!$O$9,IF(AND(C24>=66),Lists!$O$10,"Check Age"))))))))) ->  | K24: CRITICAL ILLNESS | L24: Principal Member Rate
B25: =IF(QuotationTool!B25="Child",IF(QuotationTool!$C$8="AfyaImara Junior","Child"&COUNTIF(QuotationTool!B$19:B25,"Child"),""),"") ->  | C25: =IF(QuotationTool!D25="Age",QuotationTool!E25,(TODAY()-QuotationTool!E25)/365) -> 125.3534247 | D25: =IF(AND(QuotationTool!$C$8=Lists!$B$8,QuotationTool!B25<>"",C25>=65),"65 yrs - 80 yrs", IF(AND(QuotationTool!$C$8=Lists!$B$6,QuotationTool!B25<>"",C25>=65),"65 Years and Above",IF(QuotationTool!B25="","",IF(AND(C25>0,C25<19),Lists!$O$5,IF(AND(C25>=19,C25<30),Lists!$O$6,IF(AND(C25>=30,C25<41),Lists!$O$7,IF(AND(C25>=41,C25<51),Lists!$O$8,IF(AND(C25>=51,C25<=65),Lists!$O$9,IF(AND(C25>=66),Lists!$O$10,"Check Age"))))))))) ->  | K25: Age Band
B26: =IF(QuotationTool!B26="Child",IF(QuotationTool!$C$8="AfyaImara Junior","Child"&COUNTIF(QuotationTool!B$19:B26,"Child"),""),"") ->  | C26: =IF(QuotationTool!D26="Age",QuotationTool!E26,(TODAY()-QuotationTool!E26)/365) -> 125.3534247 | D26: =IF(AND(QuotationTool!$C$8=Lists!$B$8,QuotationTool!B26<>"",C26>=65),"65 yrs - 80 yrs", IF(AND(QuotationTool!$C$8=Lists!$B$6,QuotationTool!B26<>"",C26>=65),"65 Years and Above",IF(QuotationTool!B26="","",IF(AND(C26>0,C26<19),Lists!$O$5,IF(AND(C26>=19,C26<30),Lists!$O$6,IF(AND(C26>=30,C26<41),Lists!$O$7,IF(AND(C26>=41,C26<51),Lists!$O$8,IF(AND(C26>=51,C26<=65),Lists!$O$9,IF(AND(C26>=66),Lists!$O$10,"Check Age"))))))))) ->  | K26: 19-29 | L26: 2000 | M26: 2000
B27: =IF(QuotationTool!B27="Child",IF(QuotationTool!$C$8="AfyaImara Junior","Child"&COUNTIF(QuotationTool!B$19:B27,"Child"),""),"") ->  | C27: =IF(QuotationTool!D27="Age",QuotationTool!E27,(TODAY()-QuotationTool!E27)/365) -> 125.3534247 | D27: =IF(AND(QuotationTool!$C$8=Lists!$B$8,QuotationTool!B27<>"",C27>=65),"65 yrs - 80 yrs", IF(AND(QuotationTool!$C$8=Lists!$B$6,QuotationTool!B27<>"",C27>=65),"65 Years and Above",IF(QuotationTool!B27="","",IF(AND(C27>0,C27<19),Lists!$O$5,IF(AND(C27>=19,C27<30),Lists!$O$6,IF(AND(C27>=30,C27<41),Lists!$O$7,IF(AND(C27>=41,C27<51),Lists!$O$8,IF(AND(C27>=51,C27<=65),Lists!$O$9,IF(AND(C27>=66),Lists!$O$10,"Check Age"))))))))) ->  | K27: 30-40 | L27: 2835 | M27: 2835
B28: =IF(QuotationTool!B28="Child",IF(QuotationTool!$C$8="AfyaImara Junior","Child"&COUNTIF(QuotationTool!B$19:B28,"Child"),""),"") ->  | C28: =IF(QuotationTool!D28="Age",QuotationTool!E28,(TODAY()-QuotationTool!E28)/365) -> 125.3534247 | D28: =IF(AND(QuotationTool!$C$8=Lists!$B$8,QuotationTool!B28<>"",C28>=65),"65 yrs - 80 yrs", IF(AND(QuotationTool!$C$8=Lists!$B$6,QuotationTool!B28<>"",C28>=65),"65 Years and Above",IF(QuotationTool!B28="","",IF(AND(C28>0,C28<19),Lists!$O$5,IF(AND(C28>=19,C28<30),Lists!$O$6,IF(AND(C28>=30,C28<41),Lists!$O$7,IF(AND(C28>=41,C28<51),Lists!$O$8,IF(AND(C28>=51,C28<=65),Lists!$O$9,IF(AND(C28>=66),Lists!$O$10,"Check Age"))))))))) ->  | K28: 41-50 | L28: 5455 | M28: 5455
B29: =IF(QuotationTool!B29="Child",IF(QuotationTool!$C$8="AfyaImara Junior","Child"&COUNTIF(QuotationTool!B$19:B29,"Child"),""),"") ->  | C29: =IF(QuotationTool!D29="Age",QuotationTool!E29,(TODAY()-QuotationTool!E29)/365) -> 125.3534247 | D29: =IF(AND(QuotationTool!$C$8=Lists!$B$8,QuotationTool!B29<>"",C29>=65),"65 yrs - 80 yrs", IF(AND(QuotationTool!$C$8=Lists!$B$6,QuotationTool!B29<>"",C29>=65),"65 Years and Above",IF(QuotationTool!B29="","",IF(AND(C29>0,C29<19),Lists!$O$5,IF(AND(C29>=19,C29<30),Lists!$O$6,IF(AND(C29>=30,C29<41),Lists!$O$7,IF(AND(C29>=41,C29<51),Lists!$O$8,IF(AND(C29>=51,C29<=65),Lists!$O$9,IF(AND(C29>=66),Lists!$O$10,"Check Age"))))))))) ->  | K29: 51-64 | L29: 15238 | M29: 15238
K30: 65 + | L30: 0 | M30: 0
F36: 1
F37: 2
F38: 3
F39: 4
F40: 5
F41: 6
F42: 7
F43: 8

Sheet AfyaImaraJunior (hidden)
B1: INPATIENT | I1: OP | R1: OPTIONS
R2: Unlimited Panel
A3: =R2 -> Unlimited Panel | B3: Cover limit | C3: 500000 | D3: 1000000 | E3: 3000000 | F3: 5000000 | I3: 50000 | J3: 75000 | K3: 100000 | L3: 150000 | R3: Gertrude's Panel
B5: One Child | C5: 32953.84615 | D5: 34601.53846 | E5: 37715.67692 | F5: 40355.77431 | I5: 24990 | J5: 26239.5 | K5: 28076.265 | L5: 30041.60355
B6: 2 Children | C6: 51784.61538 | D6: 54373.84615 | E6: 59267.49231 | F6: 67259.62385 | I6: 46231.5 | J6: 48543.075 | K6: 51941.09025 | L6: 55576.96657
B7: 3 Children | C7: 68261.53846 | D7: 71674.61538 | E7: 80469.09069 | F7: 90800.49219 | I7: 46462.6575 | J7: 51108.92325 | K7: 54686.54788 | L7: 58514.60623
B8: 4 Children | C8: 82384.61538 | D8: 86503.84615 | E8: 99003.65192 | F8: 110978.3793 | I8: 46617.53302 | J8: 55941.03963 | K8: 67129.24756 | L8: 80555.09707
B9: 5 Children | C9: 98437.84615 | D9: 103359.7385 | E9: 116041.9784 | F9: 131156.2665 | I9: 46734.07686 | J9: 60754.29991 | K9: 78980.58989 | L9: 102674.7669
B10: 6 Children | C10: 116162.3077 | D10: 121970.4231 | E10: 132947.7612 | F10: 151334.1537 | I10: 46827.54501 | J10: 63217.18577 | K10: 85343.20078 | L10: 115213.3211
B11: Extra Child | C11: 17724.46154 | D11: 18610.68462 | E11: 20285.64623 | F11: 21705.64147 | I11: 454.3636364 | J11: 649.0909091 | K11: 973.6363636 | L11: 1363.090909
A13: =R3 -> Gertrude's Panel | B13: Cover limit | C13: 500000 | D13: 1000000 | E13: 3000000 | F13: 5000000 | I13: 50000 | J13: 75000 | K13: 100000 | L13: 150000
B15: One Child | C15: 29538.46154 | D15: 31015.38462 | E15: 34116.92308 | F15: 37528.61538 | G15: =C15 -> 29538.46154 | I15: 19250 | J15: 20212.5 | K15: 23244.375 | L15: 26731.03125
B16: 2 Children | C16: 49230.76923 | D16: 51692.30769 | E16: 56861.53846 | F16: 62547.69231 | G16: =C16-C15 -> 19692.30769 | I16: 35612.5 | J16: 37393.125 | K16: 43002.09375 | L16: 49452.40781
B17: 3 Children | C17: 66461.53846 | D17: 69784.61538 | E17: 76763.07692 | F17: 84439.38462 | G17: =C17-C16 -> 17230.76923 | I17: 35790.5625 | J17: 39369.61875 | K17: 45275.06156 | L17: 52066.3208
B18: 4 Children | C18: 81230.76923 | D18: 85292.30769 | E18: 93821.53846 | F18: 103203.6923 | G18: 14769.23077 | I18: 35909.86438 | J18: 43091.83725 | K18: 51710.2047 | L18: 62052.24564
B19: 5 Children | C19: 96000 | D19: 100800 | E19: 110880 | F19: 121968 | G19: 14769.23077 | I19: 35999.63904 | J19: 46799.53075 | K19: 60839.38997 | L19: 79091.20696
B20: 6 Children | C20: 110769.2308 | D20: 116307.6923 | E20: 127938.4615 | F20: 140732.3077 | G20: 14769.23077 | I20: 36071.63831 | J20: 48696.71172 | K20: 65740.56083 | L20: 88749.75712
B21: Extra Child | C21: 14769.23077 | D21: 15507.69231 | E21: 17058.46154 | F21: 18764.30769 | I21: 350 | J21: 500 | K21: 750 | L21: 1050

Sheet PricingTable (hidden)
F1: 1 | G1: 2 | H1: 3 | I1: 4 | J1: 5 | K1: 6 | L1: 7 | M1: 8 | N1: 9 | O1: 10 | P1: 11 | Q1: 12 | R1: 13 | S1: 14 | T1: 15 | U1: 16 | V1: 17 | W1: 18 | X1: 19 | Y1: 20 | Z1: 21 | AA1: 22 | AB1: 23 | AC1: 24 | AD1: 25 | AE1: 26
F2: - Product - HospitalAccess- Relation - Age - ChildNo | G2: Inpatient | P2: Outpatient | Y2: Maternity | AD2: Dental & Optical
G3: 100000 | H3: 250000 | I3: 500000 | J3: 1000000 | K3: 3000000 | L3: 5000000 | M3: 10000000 | N3: 20000000 | P3: 50000 | Q3: 60000 | R3: 100000 | S3: 150000 | T3: 200000 | Y3: 20000 | Z3: 40000 | AA3: 75000 | AB3: 100000 | AD3: 15,000 Each | AE3: 30,000 Dental & 25,000 Optical | AH3: Column No. | AI3: =MATCH(QuotationTool!$D$11,PricingTable!$AI$5:$AP$5,0)+2 -> 8 | AU3: Column No. | AV3: =MATCH(QuotationTool!$D$11,PricingTable!$AV$5:$BC$5,0)+1 -> 7
G4: Inpatient | H4: Inpatient | I4: Inpatient | J4: Inpatient | K4: Inpatient | L4: Inpatient | M4: Inpatient | N4: Inpatient | P4: Outpatient | Q4: Outpatient | R4: Outpatient | S4: Outpatient | T4: Outpatient | U4: Outpatient | V4: Outpatient | W4: Outpatient | Y4: Maternity | Z4: Maternity | AA4: Maternity | AB4: Maternity | AD4: Dental & Optical | AE4: Dental & Optical | AH4: PER FAMILY OP RATES | AU4: PER PERSON OP RATES
A5: AfyaImara | B5: Age Band | C5: Relation | D5: Child No | E5: Hospital Access | F5: Combination | AH5: Family Size | AI5: Limit | AJ5: 25000 | AK5: 40000 | AL5: 50000 | AM5: 60000 | AN5: 100000 | AO5: 150000 | AP5: 200000 | AQ5: N/A | AU5: Family Size | AV5: Limit | AW5: 25000 | AX5: 40000 | AY5: 50000 | AZ5: 60000 | BA5: 100000 | BB5: 150000 | BC5: 200000 | BD5: N/A
A6: =Lists!$B$4 -> AfyaImara | B6: Child (0 -18 yrs) | C6: Child | F6: =A6&E6&C6&B6&D6 -> AfyaImaraChildChild (0 -18 yrs) | I6: =AfyaImara!C6 -> 13929 | J6: =AfyaImara!D6 -> 17102 | K6: =AfyaImara!E6 -> 26795 | L6: =AfyaImara!F6 -> 28496 | M6: =AfyaImara!G6 -> 31578 | S6: =AfyaImara!$D$28 -> 26247 | T6: =AfyaImara!$D$27 -> 30732 | U6: =AfyaImara!$D$26 -> 33800 | AD6: =AfyaImara!$E$38 -> 12190 | AE6: 22390 | AG6: =A6&AI6 -> AfyaImaraM | AH6: 1 | AI6: M | AL6: 32934 | AM6: 33266 | AN6: 35226 | AO6: 37892 | AP6: 41512 | AU6: AfyaImara | AV6: M | AY6: 32934 | AZ6: 33266 | BA6: 35226 | BB6: 37892 | BC6: 41512
A7: =Lists!$B$4 -> AfyaImara | B7: 19 yrs - 29 yrs | C7: Principal | F7: =A7&E7&C7&B7&D7 -> AfyaImaraPrincipal19 yrs - 29 yrs | I7: =AfyaImara!C4 -> 32256.6875 | J7: =AfyaImara!D4 -> 34283.6875 | K7: =AfyaImara!E4 -> 49171.6875 | L7: =AfyaImara!F4 -> 53024.6875 | M7: =AfyaImara!G4 -> 60534.6875 | S7: =AfyaImara!$D$28 -> 26247 | T7: =AfyaImara!$D$27 -> 30732 | U7: =AfyaImara!$D$26 -> 33800 | Z7: =AfyaImara!$D$34 -> 10830 | AA7: =AfyaImara!$D$33 -> 17100 | AB7: =AfyaImara!$D$32 -> 25650 | AD7: =AfyaImara!$E$38 -> 12190 | AE7: 22390 | AG7: =A7&AI7 -> AfyaImaraM+1 | AH7: 2 | AI7: M+1 | AL7: 44986 | AM7: 49269 | AN7: 66533 | AO7: 70452 | AP7: 77987 | AU7: AfyaImara County | AV7: M | AW7: 9390 | AX7: 10821 | AY7: 11775
A8: =Lists!$B$4 -> AfyaImara | B8: 19 yrs - 29 yrs | C8: Spouse | F8: AfyaImaraSpouse19 yrs - 29 yrs | I8: =AfyaImara!C5 -> 23900 | J8: =AfyaImara!D5 -> 25582 | K8: =AfyaImara!E5 -> 38516 | L8: =AfyaImara!F5 -> 41671 | M8: =AfyaImara!G5 -> 46337 | S8: =AfyaImara!$D$28 -> 26247 | T8: =AfyaImara!$D$27 -> 30732 | U8: =AfyaImara!$D$26 -> 33800 | AD8: =AfyaImara!$E$38 -> 12190 | AE8: 22390 | AG8: AfyaImaraM+2 | AH8: 3 | AI8: M+2 | AL8: 48748 | AM8: 54844 | AN8: 82895 | AO8: 88794 | AP8: 92489 | AU8: AfyaImara Seniors | AV8: M | BA8: =AfyaImaraSeniors!C7 -> 94968 | BB8: =AfyaImaraSeniors!D7 -> 101270 | BC8: =AfyaImaraSeniors!E7 -> 107534
A9: =Lists!$B$4 -> AfyaImara | B9: 30 yrs - 40 yrs | C9: Principal | F9: AfyaImaraPrincipal30 yrs - 40 yrs | I9: =AfyaImara!C8 -> 33863 | J9: =AfyaImara!D8 -> 35223 | K9: =AfyaImara!E8 -> 52342 | L9: =AfyaImara!F8 -> 56437 | M9: =AfyaImara!G8 -> 64692 | S9: =AfyaImara!$D$28 -> 26247 | T9: =AfyaImara!$D$27 -> 30732 | U9: =AfyaImara!$D$26 -> 33800 | Z9: =AfyaImara!$D$34 -> 10830 | AA9: =AfyaImara!$D$33 -> 17100 | AB9: =AfyaImara!$D$32 -> 25650 | AD9: =AfyaImara!$E$38 -> 12190 | AE9: 22390 | AG9: AfyaImaraM+3 | AH9: 4 | AI9: M+3 | AL9: 48797 | AM9: 55910 | AN9: 98147 | AO9: 106762 | AP9: 111223 | AU9: AfyaImara Junior | AV9: M
A10: =Lists!$B$4 -> AfyaImara | B10: 30 yrs - 40 yrs | C10: Spouse | F10: AfyaImaraSpouse30 yrs - 40 yrs | I10: =AfyaImara!C9 -> 25023 | J10: =AfyaImara!D9 -> 26785 | K10: =AfyaImara!E9 -> 40457 | L10: =AfyaImara!F9 -> 43799 | M10: =AfyaImara!G9 -> 48736 | S10: =AfyaImara!$D$28 -> 26247 | T10: =AfyaImara!$D$27 -> 30732 | U10: =AfyaImara!$D$26 -> 33800 | AD10: =AfyaImara!$E$38 -> 12190 | AE10: 22390 | AG10: AfyaImaraM+4 | AH10: 5 | AI10: M+4 | AL10: 48846 | AM10: 57804 | AN10: 98245 | AO10: 121829 | AP10: 126966 | AU10: AfyaImara Executive | AV10: M
A11: =Lists!$B$4 -> AfyaImara | B11: 41 yrs - 50 yrs | C11: Principal | F11: AfyaImaraPrincipal41 yrs - 50 yrs | I11: =AfyaImara!C12 -> 38058.84375 | J11: =AfyaImara!D12 -> 39384.84375 | K11: =AfyaImara!E12 -> 62184.84375 | L11: =AfyaImara!F12 -> 62633.84375 | M11: =AfyaImara!G12 -> 68869.84375 | S11: =AfyaImara!$D$28 -> 26247 | T11: =AfyaImara!$D$27 -> 30732 | U11: =AfyaImara!$D$26 -> 33800 | Z11: =AfyaImara!$D$34 -> 10830 | AA11: =AfyaImara!$D$33 -> 17100 | AB11: =AfyaImara!$D$32 -> 25650 | AD11: =AfyaImara!$E$38 -> 12190 | AE11: 22390 | AG11: AfyaImaraM+5 | AH11: 6 | AI11: M+5 | AL11: 49339 | AM11: 58095 | AN11: 100250 | AO11: 136895 | AP11: 142709
A12: =Lists!$B$4 -> AfyaImara | B12: 41 yrs - 50 yrs | C12: Spouse | F12: AfyaImaraSpouse41 yrs - 50 yrs | I12: =AfyaImara!C13 -> 26128 | J12: =AfyaImara!D13 -> 27925 | K12: =AfyaImara!E13 -> 46043 | L12: =AfyaImara!F13 -> 46446 | M12: =AfyaImara!G13 -> 49650 | S12: =AfyaImara!$D$28 -> 26247 | T12: =AfyaImara!$D$27 -> 30732 | U12: =AfyaImara!$D$26 -> 33800 | AD12: =AfyaImara!$E$38 -> 12190 | AE12: 22390 | AG12: AfyaImaraM+6 | AH12: 7 | AI12: M+6 | AL12: 49837 | AM12: 58387 | AN12: 100260 | AO12: 148202 | AP12: 157539
A13: =Lists!$B$4 -> AfyaImara | B13: 51 yrs - 65 yrs | C13: Principal | F13: AfyaImaraPrincipal51 yrs - 65 yrs | I13: =AfyaImara!C16 -> 55550.125 | J13: =AfyaImara!D16 -> 56704.125 | K13: =AfyaImara!E16 -> 76889.125 | L13: =AfyaImara!F16 -> 82030.125 | M13: =AfyaImara!G16 -> 91449.125 | S13: =AfyaImara!$D$28 -> 26247 | T13: =AfyaImara!$D$27 -> 30732 | U13: =AfyaImara!$D$26 -> 33800 | Z13: =AfyaImara!$D$34 -> 10830 | AA13: =AfyaImara!$D$33 -> 17100 | AB13: =AfyaImara!$D$32 -> 25650 | AD13: =AfyaImara!$E$38 -> 12190 | AE13: 22390 | AG13: AfyaImara
A14: =Lists!$B$4 -> AfyaImara | B14: 51 yrs - 65 yrs | C14: Spouse | F14: AfyaImaraSpouse51 yrs - 65 yrs | I14: =AfyaImara!C17 -> 31575 | J14: =AfyaImara!D17 -> 34484 | K14: =AfyaImara!E17 -> 50161 | L14: =AfyaImara!F17 -> 54280 | M14: =AfyaImara!G17 -> 60121 | S14: =AfyaImara!$D$28 -> 26247 | T14: =AfyaImara!$D$27 -> 30732 | U14: =AfyaImara!$D$26 -> 33800 | AD14: =AfyaImara!$E$38 -> 12190 | AE14: 22390 | AG14: AfyaImara
A15: =Lists!$B$4 -> AfyaImara | B15: 66 Years and Above | C15: Principal | F15: =A15&E15&C15&B15&D15 -> AfyaImaraPrincipal66 Years and Above | I15: =AfyaImara!C20 -> 82829 | J15: =AfyaImara!D20 -> 95227 | K15: =AfyaImara!E20 -> 142417 | L15: =AfyaImara!F20 -> 162180 | M15: =AfyaImara!G20 -> 185511 | S15: =AfyaImara!$D$28 -> 26247 | T15: =AfyaImara!$D$27 -> 30732 | U15: =AfyaImara!$D$26 -> 33800 | AG15: AfyaImara | AU15: SENIORS DENTAL OPTICAL
A16: =Lists!$B$4 -> AfyaImara | B16: 66 Years and Above | C16: Spouse | F16: =A16&E16&C16&B16&D16 -> AfyaImaraSpouse66 Years and Above | I16: =AfyaImara!C21 -> 64526 | J16: =AfyaImara!D21 -> 78683 | K16: =AfyaImara!E21 -> 115311 | L16: =AfyaImara!F21 -> 131186 | M16: =AfyaImara!G21 -> 145655 | S16: =AfyaImara!$D$28 -> 26247 | T16: =AfyaImara!$D$27 -> 30732 | U16: =AfyaImara!$D$26 -> 33800 | AG16: AfyaImara | AU16: Yes
A17: AfyaImara County | AG17: AfyaImara CountyM | AI17: M | AJ17: 9390 | AK17: 10821 | AL17: 11775 | AU17: No
A18: =Lists!$B$5 -> AfyaImara County | B18: Child (0 -18 yrs) | C18: Child | F18: AfyaImara CountyChildChild (0 -18 yrs) | G18: =AfyaImaraCounty!C6 -> 5438 | H18: =AfyaImaraCounty!D6 -> 6725 | I18: =AfyaImaraCounty!E6 -> 10552 | J18: =AfyaImaraCounty!F6 -> 13856 | P18: =AfyaImaraCounty!$D$24 -> 5053 | Q18: =AfyaImaraCounty!$D$23 -> 8165 | R18: =AfyaImaraCounty!$D$22 -> 10239 | AG18: AfyaImara CountyM+1 | AI18: M+1 | AJ18: 10841 | AK18: 18050 | AL18: 22856
A19: =Lists!$B$5 -> AfyaImara County | B19: 19 yrs - 29 yrs | C19: Principal | F19: AfyaImara CountyPrincipal19 yrs - 29 yrs | G19: =AfyaImaraCounty!C4 -> 11184 | H19: =AfyaImaraCounty!D4 -> 14833 | I19: =AfyaImaraCounty!E4 -> 23189 | J19: =AfyaImaraCounty!F4 -> 26908 | P19: =AfyaImaraCounty!$D$24 -> 5053 | Q19: =AfyaImaraCounty!$D$23 -> 8165 | R19: =AfyaImaraCounty!$D$22 -> 10239 | Y19: =AfyaImaraCounty!$D$29 -> 5700 | Z19: =AfyaImaraCounty!$D$28 -> 9500 | AG19: AfyaImara CountyM+2 | AI19: M+2 | AJ19: 15921 | AK19: 22120 | AL19: 26252
A20: =Lists!$B$5 -> AfyaImara County | B20: 19 yrs - 29 yrs | C20: Spouse | F20: AfyaImara CountySpouse19 yrs - 29 yrs | G20: =AfyaImaraCounty!C5 -> 9438 | H20: =AfyaImaraCounty!D5 -> 11223 | I20: =AfyaImaraCounty!E5 -> 17818 | J20: =AfyaImaraCounty!F5 -> 20488 | P20: =AfyaImaraCounty!$D$24 -> 5053 | Q20: =AfyaImaraCounty!$D$23 -> 8165 | R20: =AfyaImaraCounty!$D$22 -> 10239 | AG20: AfyaImara CountyM+3 | AI20: M+3 | AJ20: 21002 | AK20: 26647 | AL20: 30411
A21: =Lists!$B$5 -> AfyaImara County | B21: 30 yrs - 40 yrs | C21: Principal | F21: AfyaImara CountyPrincipal30 yrs - 40 yrs | G21: =AfyaImaraCounty!C8 -> 11752 | H21: =AfyaImaraCounty!D8 -> 15471 | I21: =AfyaImaraCounty!E8 -> 24203 | J21: =AfyaImaraCounty!F8 -> 28068 | P21: =AfyaImaraCounty!$D$24 -> 5053 | Q21: =AfyaImaraCounty!$D$23 -> 8165 | R21: =AfyaImaraCounty!$D$22 -> 10239 | Y21: =AfyaImaraCounty!$D$29 -> 5700 | Z21: =AfyaImaraCounty!$D$28 -> 9500 | AG21: AfyaImara CountyM+4 | AI21: M+4 | AJ21: 23856 | AK21: 30788 | AL21: 35408
A22: =Lists!$B$5 -> AfyaImara County | B22: 30 yrs - 40 yrs | C22: Spouse | F22: AfyaImara CountySpouse30 yrs - 40 yrs | G22: =AfyaImaraCounty!C9 -> 9846 | H22: =AfyaImaraCounty!D9 -> 11681 | I22: =AfyaImaraCounty!E9 -> 18638 | J22: =AfyaImaraCounty!F9 -> 21428 | P22: =AfyaImaraCounty!$D$24 -> 5053 | Q22: =AfyaImaraCounty!$D$23 -> 8165 | R22: =AfyaImaraCounty!$D$22 -> 10239 | AG22: AfyaImara CountyM+5 | AI22: M+5 | AJ22: 24603 | AK22: 34661 | AL22: 41366
A23: =Lists!$B$5 -> AfyaImara County | B23: 41 yrs - 50 yrs | C23: Principal | F23: AfyaImara CountyPrincipal41 yrs - 50 yrs | G23: =AfyaImaraCounty!C12 -> 14100 | H23: =AfyaImaraCounty!D12 -> 18111 | I23: =AfyaImaraCounty!E12 -> 28495 | J23: =AfyaImaraCounty!F12 -> 32864 | P23: =AfyaImaraCounty!$D$24 -> 5053 | Q23: =AfyaImaraCounty!$D$23 -> 8165 | R23: =AfyaImaraCounty!$D$22 -> 10239 | Y23: =AfyaImaraCounty!$D$29 -> 5700 | Z23: =AfyaImaraCounty!$D$28 -> 9500 | AG23: AfyaImara County
A24: =Lists!$B$5 -> AfyaImara County | B24: 41 yrs - 50 yrs | C24: Spouse | F24: AfyaImara CountySpouse41 yrs - 50 yrs | G24: =AfyaImaraCounty!C13 -> 11722 | H24: =AfyaImaraCounty!D13 -> 13791 | I24: =AfyaImaraCounty!E13 -> 22072 | J24: =AfyaImaraCounty!F13 -> 25262 | P24: =AfyaImaraCounty!$D$24 -> 5053 | Q24: =AfyaImaraCounty!$D$23 -> 8165 | R24: =AfyaImaraCounty!$D$22 -> 10239 | AG24: AfyaImara County
A25: =Lists!$B$5 -> AfyaImara County | B25: 51 yrs - 65 yrs | C25: Principal | F25: AfyaImara CountyPrincipal51 yrs - 65 yrs | G25: =AfyaImaraCounty!C16 -> 17662 | H25: =AfyaImaraCounty!D16 -> 22117 | I25: =AfyaImaraCounty!E16 -> 34445 | J25: =AfyaImaraCounty!F16 -> 40144 | P25: =AfyaImaraCounty!$D$24 -> 5053 | Q25: =AfyaImaraCounty!$D$23 -> 8165 | R25: =AfyaImaraCounty!$D$22 -> 10239 | Y25: =AfyaImaraCounty!$D$29 -> 5700 | Z25: =AfyaImaraCounty!$D$28 -> 9500 | AG25: AfyaImara County
A26: =Lists!$B$5 -> AfyaImara County | B26: 51 yrs - 65 yrs | C26: Spouse | F26: AfyaImara CountySpouse51 yrs - 65 yrs | G26: =AfyaImaraCounty!C17 -> 14600 | H26: =AfyaImaraCounty!D17 -> 17027 | I26: =AfyaImaraCounty!E17 -> 26622 | J26: =AfyaImaraCounty!F17 -> 31142 | P26: =AfyaImaraCounty!$D$24 -> 5053 | Q26: =AfyaImaraCounty!$D$23 -> 8165 | R26: =AfyaImaraCounty!$D$22 -> 10239 | AG26: AfyaImara County
A27: =Lists!$B$5 -> AfyaImara County | B27: 66 Years and Above | C27: Principal | F27: =A27&E27&C27&B27&D27 -> AfyaImara CountyPrincipal66 Years and Above | G27: =G25 -> 17662 | H27: 22117 | I27: 34445 | J27: 40144 | AG27: AfyaImara County
A28: =Lists!$B$5 -> AfyaImara County | B28: 66 Years and Above | C28: Spouse | F28: AfyaImara CountySpouse66 Years and Above | G28: 14600 | H28: 17027 | I28: 26622 | J28: 31142 | AG28: AfyaImara County
A29: AfyaImara Seniors | F29: AfyaImara Seniors | AG29: AfyaImara Seniors
A30: =Lists!$B$6 -> AfyaImara Seniors | B30: 65 Years and Above | C30: Principal | F30: AfyaImara SeniorsPrincipal65 Years and Above | I30: =AfyaImaraSeniors!C4 -> 116352 | J30: =AfyaImaraSeniors!D4 -> 132299 | K30: =AfyaImaraSeniors!E4 -> 178535 | L30: =AfyaImaraSeniors!F4 -> 206231 | M30: =AfyaImaraSeniors!G4 -> 229049 | T30: =AfyaImaraSeniors!$C$7 -> 94968 | U30: =AfyaImaraSeniors!$D$7 -> 101270 | V30: =AfyaImaraSeniors!$E$7 -> 107534 | AG30: AfyaImara Seniors
A31: =Lists!$B$6 -> AfyaImara Seniors | B31: 65 Years and Above | C31: Spouse | F31: AfyaImara SeniorsSpouse65 Years and Above | I31: =AfyaImaraSeniors!C4 -> 116352 | J31: =AfyaImaraSeniors!D4 -> 132299 | K31: =AfyaImaraSeniors!E4 -> 178535 | L31: =AfyaImaraSeniors!F4 -> 206231 | M31: =AfyaImaraSeniors!G4 -> 229049 | T31: =AfyaImaraSeniors!$C$7 -> 94968 | U31: =AfyaImaraSeniors!$D$7 -> 101270 | V31: =AfyaImaraSeniors!$E$7 -> 107534 | AG31: AfyaImara Seniors
A32: AfyaImara Junior | B32: XX | C32: XXX | D32: =C32 -> XXX | E32: =D32 -> XXX | F32: XXX | G32: XXX | H32: XXX | I32: XXX | J32: XXX | K32: XXX | L32: XXX | M32: XXX | N32: XXX | O32: XX | P32: 50000 | Q32: 75000 | R32: 100000 | S32: 150000 | T32: XX | U32: XX | V32: XX | W32: XX | AG32: AfyaImara Junior
A33: =Lists!$B$7 -> AfyaImara Junior | B33: Child (0 -18 yrs) | C33: Child | D33: Child1 | E33: =AfyaImaraJunior!$R$2 -> Unlimited Panel | F33: AfyaImara JuniorUnlimited PanelChildChild (0 -18 yrs)Child1 | I33: =AfyaImaraJunior!C5 -> 32953.84615 | J33: =AfyaImaraJunior!D5 -> 34601.53846 | K33: =AfyaImaraJunior!E5 -> 37715.67692 | L33: =AfyaImaraJunior!F5 -> 40355.77431 | P33: =AfyaImaraJunior!I5 -> 24990 | Q33: =AfyaImaraJunior!J5 -> 26239.5 | R33: =AfyaImaraJunior!K5 -> 28076.265 | S33: =AfyaImaraJunior!L5 -> 30041.60355 | AG33: AfyaImara Junior
A34: =Lists!$B$7 -> AfyaImara Junior | B34: Child (0 -18 yrs) | C34: Child | D34: Child2 | E34: =AfyaImaraJunior!$R$2 -> Unlimited Panel | F34: AfyaImara JuniorUnlimited PanelChildChild (0 -18 yrs)Child2 | I34: =AfyaImaraJunior!C6-AfyaImaraJunior!C5 -> 18830.76923 | J34: =AfyaImaraJunior!D6-AfyaImaraJunior!D5 -> 19772.30769 | K34: =AfyaImaraJunior!E6-AfyaImaraJunior!E5 -> 21551.81538 | L34: =AfyaImaraJunior!F6-AfyaImaraJunior!F5 -> 26903.84954 | P34: =AfyaImaraJunior!I6-AfyaImaraJunior!I5 -> 21241.5 | Q34: =AfyaImaraJunior!J6-AfyaImaraJunior!J5 -> 22303.575 | R34: =AfyaImaraJunior!K6-AfyaImaraJunior!K5 -> 23864.82525 | S34: =AfyaImaraJunior!L6-AfyaImaraJunior!L5 -> 25535.36302 | AG34: AfyaImara Junior
A35: =Lists!$B$7 -> AfyaImara Junior | B35: Child (0 -18 yrs) | C35: Child | D35: Child3 | E35: =AfyaImaraJunior!$R$2 -> Unlimited Panel | F35: AfyaImara JuniorUnlimited PanelChildChild (0 -18 yrs)Child3 | I35: =AfyaImaraJunior!C7-AfyaImaraJunior!C6 -> 16476.92308 | J35: =AfyaImaraJunior!D7-AfyaImaraJunior!D6 -> 17300.76923 | K35: =AfyaImaraJunior!E7-AfyaImaraJunior!E6 -> 21201.59838 | L35: =AfyaImaraJunior!F7-AfyaImaraJunior!F6 -> 23540.86835 | P35: =AfyaImaraJunior!I7-AfyaImaraJunior!I6 -> 231.1575 | Q35: =AfyaImaraJunior!J7-AfyaImaraJunior!J6 -> 2565.84825 | R35: =AfyaImaraJunior!K7-AfyaImaraJunior!K6 -> 2745.457627 | S35: =AfyaImaraJunior!L7-AfyaImaraJunior!L6 -> 2937.639661 | AG35: AfyaImara Junior
A36: =Lists!$B$7 -> AfyaImara Junior | B36: Child (0 -18 yrs) | C36: Child | D36: Child4 | E36: =AfyaImaraJunior!$R$2 -> Unlimited Panel | F36: AfyaImara JuniorUnlimited PanelChildChild (0 -18 yrs)Child4 | I36: =AfyaImaraJunior!C8-AfyaImaraJunior!C7 -> 14123.07692 | J36: =AfyaImaraJunior!D8-AfyaImaraJunior!D7 -> 14829.23077 | K36: =AfyaImaraJunior!E8-AfyaImaraJunior!E7 -> 18534.56123 | L36: =AfyaImaraJunior!F8-AfyaImaraJunior!F7 -> 20177.88715 | P36: =AfyaImaraJunior!I8-AfyaImaraJunior!I7 -> 154.875525 | Q36: =AfyaImaraJunior!J8-AfyaImaraJunior!J7 -> 4832.11638 | R36: =AfyaImaraJunior!K8-AfyaImaraJunior!K7 -> 12442.69968 | S36: =AfyaImaraJunior!L8-AfyaImaraJunior!L7 -> 22040.49084 | AG36: AfyaImara Junior
A37: =Lists!$B$7 -> AfyaImara Junior | B37: Child (0 -18 yrs) | C37: Child | D37: Child5 | E37: =AfyaImaraJunior!$R$2 -> Unlimited Panel | F37: AfyaImara JuniorUnlimited PanelChildChild (0 -18 yrs)Child5 | I37: =AfyaImaraJunior!C9-AfyaImaraJunior!C8 -> 16053.23077 | J37: =AfyaImaraJunior!D9-AfyaImaraJunior!D8 -> 16855.89231 | K37: =AfyaImaraJunior!E9-AfyaImaraJunior!E8 -> 17038.32645 | L37: =AfyaImaraJunior!F9-AfyaImaraJunior!F8 -> 20177.88715 | P37: =AfyaImaraJunior!I9-AfyaImaraJunior!I8 -> 116.5438326 | Q37: =AfyaImaraJunior!J9-AfyaImaraJunior!J8 -> 4813.260285 | R37: =AfyaImaraJunior!K9-AfyaImaraJunior!K8 -> 11851.34233 | S37: =AfyaImaraJunior!L9-AfyaImaraJunior!L8 -> 22119.66979 | AG37: AfyaImara Junior
A38: =Lists!$B$7 -> AfyaImara Junior | B38: Child (0 -18 yrs) | C38: Child | D38: Child6 | E38: =AfyaImaraJunior!$R$2 -> Unlimited Panel | F38: AfyaImara JuniorUnlimited PanelChildChild (0 -18 yrs)Child6 | I38: =AfyaImaraJunior!C10-AfyaImaraJunior!C9 -> 17724.46154 | J38: =AfyaImaraJunior!D10-AfyaImaraJunior!D9 -> 18610.68462 | K38: =AfyaImaraJunior!E10-AfyaImaraJunior!E9 -> 16905.78278 | L38: =AfyaImaraJunior!F10-AfyaImaraJunior!F9 -> 20177.88715 | P38: =AfyaImaraJunior!I10-AfyaImaraJunior!I9 -> 93.46815372 | Q38: =AfyaImaraJunior!J10-AfyaImaraJunior!J9 -> 2462.88585 | R38: =AfyaImaraJunior!K10-AfyaImaraJunior!K9 -> 6362.610894 | S38: =AfyaImaraJunior!L10-AfyaImaraJunior!L9 -> 12538.5542 | AG38: AfyaImara Junior
A39: =Lists!$B$7 -> AfyaImara Junior | B39: Child (0 -18 yrs) | C39: Child | D39: Child7 | E39: =AfyaImaraJunior!$R$2 -> Unlimited Panel | F39: AfyaImara JuniorUnlimited PanelChildChild (0 -18 yrs)Child7 | I39: =AfyaImaraJunior!C11 -> 17724.46154 | J39: =AfyaImaraJunior!D11 -> 18610.68462 | K39: =AfyaImaraJunior!E11 -> 20285.64623 | L39: =AfyaImaraJunior!F11 -> 21705.64147 | P39: =AfyaImaraJunior!I11 -> 454.3636364 | Q39: =AfyaImaraJunior!J11 -> 649.0909091 | R39: =AfyaImaraJunior!K11 -> 973.6363636 | S39: =AfyaImaraJunior!L11 -> 1363.090909 | AG39: AfyaImara Junior
A40: =Lists!$B$7 -> AfyaImara Junior | B40: Child (0 -18 yrs) | C40: Child | D40: Child8 | E40: =AfyaImaraJunior!$R$2 -> Unlimited Panel | F40: AfyaImara JuniorUnlimited PanelChildChild (0 -18 yrs)Child8 | I40: =I39 -> 17724.46154 | J40: =J39 -> 18610.68462 | K40: 20285.64623 | L40: 21705.64147 | P40: =P39 -> 454.3636364 | Q40: =Q39 -> 649.0909091 | R40: 973.6363636 | S40: 1363.090909 | AG40: AfyaImara Junior
A41: =Lists!$B$7 -> AfyaImara Junior | B41: Child (0 -18 yrs) | C41: Child | D41: Child9 | E41: =AfyaImaraJunior!$R$2 -> Unlimited Panel | F41: AfyaImara JuniorUnlimited PanelChildChild (0 -18 yrs)Child9 | I41: =I40 -> 17724.46154 | J41: 18610.68462 | K41: 20285.64623 | L41: 21705.64147 | P41: =P40 -> 454.3636364 | Q41: 649.0909091 | R41: 973.6363636 | S41: 1363.090909 | AG41: AfyaImara Junior
A42: =Lists!$B$7 -> AfyaImara Junior | B42: Child (0 -18 yrs) | C42: Child | D42: Child10 | E42: =AfyaImaraJunior!$R$2 -> Unlimited Panel | F42: AfyaImara JuniorUnlimited PanelChildChild (0 -18 yrs)Child10 | I42: 17724.46154 | J42: 18610.68462 | K42: 20285.64623 | L42: 21705.64147 | P42: 454.3636364 | Q42: 649.0909091 | R42: 973.6363636 | S42: 1363.090909 | AG42: AfyaImara Junior
A44: =Lists!$B$7 -> AfyaImara Junior | B44: Child (0 -18 yrs) | C44: Child | D44: Child1 | E44: =AfyaImaraJunior!$R$3 -> Gertrude's Panel | F44: AfyaImara JuniorGertrude's PanelChildChild (0 -18 yrs)Child1 | I44: =AfyaImaraJunior!C15 -> 29538.46154 | J44: =AfyaImaraJunior!D15 -> 31015.38462 | K44: =AfyaImaraJunior!E15 -> 34116.92308 | L44: =AfyaImaraJunior!F15 -> 37528.61538 | P44: =AfyaImaraJunior!I15 -> 19250 | Q44: =AfyaImaraJunior!J15 -> 20212.5 | R44: =AfyaImaraJunior!K15 -> 23244.375 | S44: =AfyaImaraJunior!L15 -> 26731.03125 | AG44: AfyaImara Junior
A45: =Lists!$B$7 -> AfyaImara Junior | B45: Child (0 -18 yrs) | C45: Child | D45: Child2 | E45: =AfyaImaraJunior!$R$3 -> Gertrude's Panel | F45: AfyaImara JuniorGertrude's PanelChildChild (0 -18 yrs)Child2 | I45: =AfyaImaraJunior!C16-AfyaImaraJunior!C15 -> 19692.30769 | J45: =AfyaImaraJunior!D16-AfyaImaraJunior!D15 -> 20676.92308 | K45: =AfyaImaraJunior!E16-AfyaImaraJunior!E15 -> 22744.61538 | L45: =AfyaImaraJunior!F16-AfyaImaraJunior!F15 -> 25019.07692 | P45: =AfyaImaraJunior!I16-AfyaImaraJunior!I15 -> 16362.5 | Q45: =AfyaImaraJunior!J16-AfyaImaraJunior!J15 -> 17180.625 | R45: =AfyaImaraJunior!K16-AfyaImaraJunior!K15 -> 19757.71875 | S45: =AfyaImaraJunior!L16-AfyaImaraJunior!L15 -> 22721.37656 | AG45: AfyaImara Junior
A46: =Lists!$B$7 -> AfyaImara Junior | B46: Child (0 -18 yrs) | C46: Child | D46: Child3 | E46: =AfyaImaraJunior!$R$3 -> Gertrude's Panel | F46: AfyaImara JuniorGertrude's PanelChildChild (0 -18 yrs)Child3 | I46: =AfyaImaraJunior!C17-AfyaImaraJunior!C16 -> 17230.76923 | J46: =AfyaImaraJunior!D17-AfyaImaraJunior!D16 -> 18092.30769 | K46: =AfyaImaraJunior!E17-AfyaImaraJunior!E16 -> 19901.53846 | L46: =AfyaImaraJunior!F17-AfyaImaraJunior!F16 -> 21891.69231 | P46: =AfyaImaraJunior!I17-AfyaImaraJunior!I16 -> 178.0625 | Q46: =AfyaImaraJunior!J17-AfyaImaraJunior!J16 -> 1976.49375 | R46: =AfyaImaraJunior!K17-AfyaImaraJunior!K16 -> 2272.967812 | S46: =AfyaImaraJunior!L17-AfyaImaraJunior!L16 -> 2613.912984 | AG46: AfyaImara Junior
A47: =Lists!$B$7 -> AfyaImara Junior | B47: Child (0 -18 yrs) | C47: Child | D47: Child4 | E47: =AfyaImaraJunior!$R$3 -> Gertrude's Panel | F47: AfyaImara JuniorGertrude's PanelChildChild (0 -18 yrs)Child4 | I47: =AfyaImaraJunior!C18-AfyaImaraJunior!C17 -> 14769.23077 | J47: =AfyaImaraJunior!D18-AfyaImaraJunior!D17 -> 15507.69231 | K47: =AfyaImaraJunior!E18-AfyaImaraJunior!E17 -> 17058.46154 | L47: =AfyaImaraJunior!F18-AfyaImaraJunior!F17 -> 18764.30769 | P47: =AfyaImaraJunior!I18-AfyaImaraJunior!I17 -> 119.301875 | Q47: =AfyaImaraJunior!J18-AfyaImaraJunior!J17 -> 3722.2185 | R47: =AfyaImaraJunior!K18-AfyaImaraJunior!K17 -> 6435.143138 | S47: =AfyaImaraJunior!L18-AfyaImaraJunior!L17 -> 9985.924843 | AG47: AfyaImara Junior
A48: =Lists!$B$7 -> AfyaImara Junior | B48: Child (0 -18 yrs) | C48: Child | D48: Child5 | E48: =AfyaImaraJunior!$R$3 -> Gertrude's Panel | F48: AfyaImara JuniorGertrude's PanelChildChild (0 -18 yrs)Child5 | I48: =AfyaImaraJunior!C19-AfyaImaraJunior!C18 -> 14769.23077 | J48: =AfyaImaraJunior!D19-AfyaImaraJunior!D18 -> 15507.69231 | K48: =AfyaImaraJunior!E19-AfyaImaraJunior!E18 -> 17058.46154 | L48: =AfyaImaraJunior!F19-AfyaImaraJunior!F18 -> 18764.30769 | P48: =AfyaImaraJunior!I19-AfyaImaraJunior!I18 -> 89.77466094 | Q48: =AfyaImaraJunior!J19-AfyaImaraJunior!J18 -> 3707.693497 | R48: =AfyaImaraJunior!K19-AfyaImaraJunior!K18 -> 9129.185271 | S48: =AfyaImaraJunior!L19-AfyaImaraJunior!L18 -> 17038.96132 | AG48: AfyaImara Junior
A49: =Lists!$B$7 -> AfyaImara Junior | B49: Child (0 -18 yrs) | C49: Child | D49: Child6 | E49: =AfyaImaraJunior!$R$3 -> Gertrude's Panel | F49: AfyaImara JuniorGertrude's PanelChildChild (0 -18 yrs)Child6 | I49: =AfyaImaraJunior!C20-AfyaImaraJunior!C19 -> 14769.23077 | J49: =AfyaImaraJunior!D20-AfyaImaraJunior!D19 -> 15507.69231 | K49: =AfyaImaraJunior!E20-AfyaImaraJunior!E19 -> 17058.46154 | L49: =AfyaImaraJunior!F20-AfyaImaraJunior!F19 -> 18764.30769 | P49: =AfyaImaraJunior!I20-AfyaImaraJunior!I19 -> 71.99927807 | Q49: =AfyaImaraJunior!J20-AfyaImaraJunior!J19 -> 1897.180977 | R49: =AfyaImaraJunior!K20-AfyaImaraJunior!K19 -> 4901.170857 | S49: =AfyaImaraJunior!L20-AfyaImaraJunior!L19 -> 9658.550155 | AG49: AfyaImara Junior
A50: =Lists!$B$7 -> AfyaImara Junior | B50: Child (0 -18 yrs) | C50: Child | D50: Child7 | E50: =AfyaImaraJunior!$R$3 -> Gertrude's Panel | F50: AfyaImara JuniorGertrude's PanelChildChild (0 -18 yrs)Child7 | I50: =AfyaImaraJunior!C21 -> 14769.23077 | J50: =AfyaImaraJunior!D21 -> 15507.69231 | K50: =AfyaImaraJunior!E21 -> 17058.46154 | L50: =AfyaImaraJunior!F21 -> 18764.30769 | P50: =AfyaImaraJunior!I21 -> 350 | Q50: =AfyaImaraJunior!J21 -> 500 | R50: =AfyaImaraJunior!K21 -> 750 | S50: =AfyaImaraJunior!L21 -> 1050 | AG50: AfyaImara Junior
A51: =Lists!$B$7 -> AfyaImara Junior | B51: Child (0 -18 yrs) | C51: Child | D51: Child8 | E51: =AfyaImaraJunior!$R$3 -> Gertrude's Panel | F51: AfyaImara JuniorGertrude's PanelChildChild (0 -18 yrs)Child8 | I51: =I50 -> 14769.23077 | J51: =J50 -> 15507.69231 | K51: 17058.46154 | L51: 18764.30769 | P51: =P50 -> 350 | Q51: =Q50 -> 500 | R51: 750 | S51: 1050 | AG51: AfyaImara Junior
A52: =Lists!$B$7 -> AfyaImara Junior | B52: Child (0 -18 yrs) | C52: Child | D52: Child9 | E52: =AfyaImaraJunior!$R$3 -> Gertrude's Panel | F52: AfyaImara JuniorGertrude's PanelChildChild (0 -18 yrs)Child9 | I52: =I51 -> 14769.23077 | J52: 15507.69231 | K52: 17058.46154 | L52: 18764.30769 | P52: =P51 -> 350 | Q52: 500 | R52: 750 | S52: 1050 | AG52: AfyaImara Junior
A53: =Lists!$B$7 -> AfyaImara Junior | B53: Child (0 -18 yrs) | C53: Child | D53: Child10 | E53: =AfyaImaraJunior!$R$3 -> Gertrude's Panel | F53: AfyaImara JuniorGertrude's PanelChildChild (0 -18 yrs)Child10 | I53: 14769.23077 | J53: 15507.69231 | K53: 17058.46154 | L53: 18764.30769 | P53: 350 | Q53: 500 | R53: 750 | S53: 1050 | AG53: AfyaImara Junior
A54: AfyaImara Executive | B54: xx | C54: =B54 -> xx | D54: =C54 -> xx | E54: xx | F54: xx | G54: xx | H54: xx | I54: xx | J54: xx | K54: xx | L54: xx | M54: xx | N54: xx | O54: xx | P54: xx | Q54: xx | R54: xx | S54: xx | T54: xx | U54: xx | V54: 200000 | W54: 250000 | AG54: AfyaImara Executive
A55: =Lists!$B$8 -> AfyaImara Executive | B55: Child (0 -18 yrs) | C55: Child | F55: AfyaImara ExecutiveChildChild (0 -18 yrs) | M55: =AfyaImaraExecutive!D7 -> 97360 | N55: =AfyaImaraExecutive!E7 -> 111268 | V55: =AfyaImaraExecutive!C27 -> 43029 | W55: =AfyaImaraExecutive!D27 -> 47030 | AG55: AfyaImara Executive
A56: =Lists!$B$8 -> AfyaImara Executive | B56: 19 yrs - 29 yrs | C56: Principal | F56: AfyaImara ExecutivePrincipal19 yrs - 29 yrs | M56: =AfyaImaraExecutive!D5 -> 222424 | N56: =AfyaImaraExecutive!E5 -> 259199 | V56: =AfyaImaraExecutive!C28 -> 54286 | W56: =AfyaImaraExecutive!D28 -> 59334 | AG56: AfyaImara Executive
A57: =Lists!$B$8 -> AfyaImara Executive | B57: 19 yrs - 29 yrs | C57: Spouse | F57: AfyaImara ExecutiveSpouse19 yrs - 29 yrs | M57: =AfyaImaraExecutive!D6 -> 195174 | N57: =AfyaImaraExecutive!E6 -> 228056 | V57: =AfyaImaraExecutive!C28 -> 54286 | W57: =AfyaImaraExecutive!D28 -> 59334 | AG57: AfyaImara Executive
A58: =Lists!$B$8 -> AfyaImara Executive | B58: 30 yrs - 40 yrs | C58: Principal | F58: AfyaImara ExecutivePrincipal30 yrs - 40 yrs | M58: =AfyaImaraExecutive!D9 -> 231972 | N58: =AfyaImaraExecutive!E9 -> 270111 | V58: =AfyaImaraExecutive!C29 -> 64577 | W58: =AfyaImaraExecutive!D29 -> 70582 | AG58: AfyaImara Executive
A59: =Lists!$B$8 -> AfyaImara Executive | B59: 30 yrs - 40 yrs | C59: Spouse | F59: AfyaImara ExecutiveSpouse30 yrs - 40 yrs | M59: =AfyaImaraExecutive!D10 -> 203059 | N59: =AfyaImaraExecutive!E10 -> 237067 | V59: =AfyaImaraExecutive!C29 -> 64577 | W59: =AfyaImaraExecutive!D29 -> 70582 | AG59: AfyaImara Executive
A60: =Lists!$B$8 -> AfyaImara Executive | B60: 41 yrs - 50 yrs | C60: Principal | F60: AfyaImara ExecutivePrincipal41 yrs - 50 yrs | M60: =AfyaImaraExecutive!D13 -> 243559 | N60: =AfyaImaraExecutive!E13 -> 283353 | V60: =AfyaImaraExecutive!C30 -> 79820 | W60: =AfyaImaraExecutive!D30 -> 87243 | AG60: AfyaImara Executive
A61: =Lists!$B$8 -> AfyaImara Executive | B61: 41 yrs - 50 yrs | C61: Spouse | F61: AfyaImara ExecutiveSpouse41 yrs - 50 yrs | M61: =AfyaImaraExecutive!D14 -> 211374 | N61: =AfyaImaraExecutive!E14 -> 246570 | V61: =AfyaImaraExecutive!C30 -> 79820 | W61: =AfyaImaraExecutive!D30 -> 87243 | AG61: AfyaImara Executive
A62: =Lists!$B$8 -> AfyaImara Executive | B62: 51 yrs - 65 yrs | C62: Principal | F62: AfyaImara ExecutivePrincipal51 yrs - 65 yrs | M62: =AfyaImaraExecutive!D17 -> 280840 | N62: =AfyaImaraExecutive!E17 -> 325959 | V62: =AfyaImaraExecutive!C31 -> 95064 | W62: =AfyaImaraExecutive!D31 -> 103904 | AG62: AfyaImara Executive
A63: =Lists!$B$8 -> AfyaImara Executive | B63: 51 yrs - 65 yrs | C63: Spouse | F63: AfyaImara ExecutiveSpouse51 yrs - 65 yrs | M63: =AfyaImaraExecutive!D18 -> 241896 | N63: =AfyaImaraExecutive!E18 -> 281452 | V63: =AfyaImaraExecutive!C31 -> 95064 | W63: =AfyaImaraExecutive!D31 -> 103904 | AG63: AfyaImara Executive
A64: =Lists!$B$8 -> AfyaImara Executive | B64: 65 yrs - 80 yrs | C64: Principal | F64: AfyaImara ExecutivePrincipal65 yrs - 80 yrs | M64: =AfyaImaraExecutive!D21 -> 556653 | N64: =AfyaImaraExecutive!E21 -> 641175 | V64: =AfyaImaraExecutive!C32 -> 102605 | W64: =AfyaImaraExecutive!D32 -> 112146 | AG64: AfyaImara Executive
A65: =Lists!$B$8 -> AfyaImara Executive | B65: 65 yrs - 80 yrs | C65: Spouse | F65: AfyaImara ExecutiveSpouse65 yrs - 80 yrs | M65: =AfyaImaraExecutive!D22 -> 471379 | N65: =AfyaImaraExecutive!E22 -> 543718 | V65: =AfyaImaraExecutive!C32 -> 102605 | W65: =AfyaImaraExecutive!D32 -> 112146 | AG65: AfyaImara Executive
B67: AfyaImara ExecutivePrincipal66 Years and Above
AG71: =A71&AI71 -> 

Sheet BenefitsSchedule
C1: [ Page 2/2 of Quotation ]
A4: =QuotationTool!C5 -> ABSOLOM IRUNGU | B4: =QuotationTool!C8&" - Health Insurance QUOTATION" -> AfyaImara - Health Insurance QUOTATION
A6: Benefits Schedule
A8: Inpatient
A9: =IFERROR(VLOOKUP(QuotationTool!$C$8&QuotationTool!$C$10&BenefitsSchedule!K9,BenefitsLookup!$A:$E,5,FALSE),"") -> Overall Limit | C9: =IFERROR(VLOOKUP(QuotationTool!$C$8&QuotationTool!$C$10&K9,BenefitsLookup!$A:$M,MATCH(QuotationTool!$D$10,BenefitsLookup!$A$3:$M$3,0),FALSE),"") -> 10000000 | J9: Inpatient | K9: 1
A10: =IFERROR(VLOOKUP(QuotationTool!$C$8&QuotationTool!$C$10&BenefitsSchedule!K10,BenefitsLookup!$A:$E,5,FALSE),"") -> Bed | C10: =IFERROR(VLOOKUP(QuotationTool!$C$8&QuotationTool!$C$10&K10,BenefitsLookup!$A:$M,MATCH(QuotationTool!$D$10,BenefitsLookup!$A$3:$M$3,0),FALSE),"") -> En Suite / Max Kes 26,000 | J10: Inpatient | K10: 2
A11: =IFERROR(VLOOKUP(QuotationTool!$C$8&QuotationTool!$C$10&BenefitsSchedule!K11,BenefitsLookup!$A:$E,5,FALSE),"") -> Lodger Fee for Accompanying Parent/Guardian | C11: =IFERROR(VLOOKUP(QuotationTool!$C$8&QuotationTool!$C$10&K11,BenefitsLookup!$A:$M,MATCH(QuotationTool!$D$10,BenefitsLookup!$A$3:$M$3,0),FALSE),"") -> 12 Years | J11: Inpatient | K11: 3
A12: =IFERROR(VLOOKUP(QuotationTool!$C$8&QuotationTool!$C$10&BenefitsSchedule!K12,BenefitsLookup!$A:$E,5,FALSE),"") -> Emergency Evacuation Within East Africa | C12: =IFERROR(VLOOKUP(QuotationTool!$C$8&QuotationTool!$C$10&K12,BenefitsLookup!$A:$M,MATCH(QuotationTool!$D$10,BenefitsLookup!$A$3:$M$3,0),FALSE),"") -> Road & Air Ambulance | J12: Inpatient | K12: 4
A13: =IFERROR(VLOOKUP(QuotationTool!$C$8&QuotationTool!$C$10&BenefitsSchedule!K13,BenefitsLookup!$A:$E,5,FALSE),"") -> Accidents | C13: =IFERROR(VLOOKUP(QuotationTool!$C$8&QuotationTool!$C$10&K13,BenefitsLookup!$A:$M,MATCH(QuotationTool!$D$10,BenefitsLookup!$A$3:$M$3,0),FALSE),"") -> To overall Limit | J13: Inpatient | K13: 5
A14: =IFERROR(VLOOKUP(QuotationTool!$C$8&QuotationTool!$C$10&BenefitsSchedule!K14,BenefitsLookup!$A:$E,5,FALSE),"") -> Newly Diagnosed Chronic illnesses | C14: =IFERROR(VLOOKUP(QuotationTool!$C$8&QuotationTool!$C$10&K14,BenefitsLookup!$A:$M,MATCH(QuotationTool!$D$10,BenefitsLookup!$A$3:$M$3,0),FALSE),"") -> 3500000 | J14: Inpatient | K14: 6
A15: =IFERROR(VLOOKUP(QuotationTool!$C$8&QuotationTool!$C$10&BenefitsSchedule!K15,BenefitsLookup!$A:$E,5,FALSE),"") -> Chronic, Pre-existing illnesses, Congenital Conditions & HIV/AIDS | C15: =IFERROR(VLOOKUP(QuotationTool!$C$8&QuotationTool!$C$10&K15,BenefitsLookup!$A:$M,MATCH(QuotationTool!$D$10,BenefitsLookup!$A$3:$M$3,0),FALSE),"") -> 1000000 | J15: Inpatient | K15: 7
A16: =IFERROR(VLOOKUP(QuotationTool!$C$8&QuotationTool!$C$10&BenefitsSchedule!K16,BenefitsLookup!$A:$E,5,FALSE),"") -> Organ Transplant (cost of donor or securing the organ is excluded). This is in addition to the relevant condition’s benefit allocation. | C16: =IFERROR(VLOOKUP(QuotationTool!$C$8&QuotationTool!$C$10&K16,BenefitsLookup!$A:$M,MATCH(QuotationTool!$D$10,BenefitsLookup!$A$3:$M$3,0),FALSE),"") -> 500000 | J16: Inpatient | K16: 8
A17: =IFERROR(VLOOKUP(QuotationTool!$C$8&QuotationTool!$C$10&BenefitsSchedule!K17,BenefitsLookup!$A:$E,5,FALSE),"") -> Psychiatric and Psychological Illnesses | C17: =IFERROR(VLOOKUP(QuotationTool!$C$8&QuotationTool!$C$10&K17,BenefitsLookup!$A:$M,MATCH(QuotationTool!$D$10,BenefitsLookup!$A$3:$M$3,0),FALSE),"") -> 700000 | J17: Inpatient | K17: 9
A18: =IFERROR(VLOOKUP(QuotationTool!$C$8&QuotationTool!$C$10&BenefitsSchedule!K18,BenefitsLookup!$A:$E,5,FALSE),"") -> Post Hospitalization 21 days after discharge (On Reimbursement) | C18: =IFERROR(VLOOKUP(QuotationTool!$C$8&QuotationTool!$C$10&K18,BenefitsLookup!$A:$M,MATCH(QuotationTool!$D$10,BenefitsLookup!$A$3:$M$3,0),FALSE),"") -> 30000 | J18: Inpatient | K18: 10
A19: =IFERROR(VLOOKUP(QuotationTool!$C$8&QuotationTool!$C$10&BenefitsSchedule!K19,BenefitsLookup!$A:$E,5,FALSE),"") -> Neo-natal and prematurity conditions. | C19: =IFERROR(VLOOKUP(QuotationTool!$C$8&QuotationTool!$C$10&K19,BenefitsLookup!$A:$M,MATCH(QuotationTool!$D$10,BenefitsLookup!$A$3:$M$3,0),FALSE),"") -> 500000 | J19: Inpatient | K19: 11
A20: =IFERROR(VLOOKUP(QuotationTool!$C$8&QuotationTool!$C$10&BenefitsSchedule!K20,BenefitsLookup!$A:$E,5,FALSE),"") -> In patient non-accident related dental surgery/ treatment | C20: =IFERROR(VLOOKUP(QuotationTool!$C$8&QuotationTool!$C$10&K20,BenefitsLookup!$A:$M,MATCH(QuotationTool!$D$10,BenefitsLookup!$A$3:$M$3,0),FALSE),"") -> 250000 | J20: Inpatient | K20: 12
A21: =IFERROR(VLOOKUP(QuotationTool!$C$8&QuotationTool!$C$10&BenefitsSchedule!K21,BenefitsLookup!$A:$E,5,FALSE),"") -> In patient non-accident related eye treatments excluding surgery for refractive errors and laser treatment | C21: =IFERROR(VLOOKUP(QuotationTool!$C$8&QuotationTool!$C$10&K21,BenefitsLookup!$A:$M,MATCH(QuotationTool!$D$10,BenefitsLookup!$A$3:$M$3,0),FALSE),"") -> 200000 | J21: Inpatient | K21: 13
A22: =IFERROR(VLOOKUP(QuotationTool!$C$8&QuotationTool!$C$10&BenefitsSchedule!K22,BenefitsLookup!$A:$E,5,FALSE),"") -> Accident Related Inpatient Dental and Ophthalmological treatment | C22: =IFERROR(VLOOKUP(QuotationTool!$C$8&QuotationTool!$C$10&K22,BenefitsLookup!$A:$M,MATCH(QuotationTool!$D$10,BenefitsLookup!$A$3:$M$3,0),FALSE),"") -> 5000000 | J22: Inpatient | K22: 14
A23: =IFERROR(VLOOKUP(QuotationTool!$C$8&QuotationTool!$C$10&BenefitsSchedule!K23,BenefitsLookup!$A:$E,5,FALSE),"") -> Illness related reconstructive/plastic surgery (excludes cosmetic, obstetrics and gynecology related) | C23: =IFERROR(VLOOKUP(QuotationTool!$C$8&QuotationTool!$C$10&K23,BenefitsLookup!$A:$M,MATCH(QuotationTool!$D$10,BenefitsLookup!$A$3:$M$3,0),FALSE),"") -> 300000 | J23: Inpatient | K23: 15
A24: =IFERROR(VLOOKUP(QuotationTool!$C$8&QuotationTool!$C$10&BenefitsSchedule!K24,BenefitsLookup!$A:$E,5,FALSE),"") -> Non accident related maxillofacial surgery (Excluding routine dental surgery and dental fixtures) | C24: =IFERROR(VLOOKUP(QuotationTool!$C$8&QuotationTool!$C$10&K24,BenefitsLookup!$A:$M,MATCH(QuotationTool!$D$10,BenefitsLookup!$A$3:$M$3,0),FALSE),"") -> 500000 | J24: Inpatient | K24: 16
A25: =IFERROR(VLOOKUP(QuotationTool!$C$8&QuotationTool!$C$10&BenefitsSchedule!K25,BenefitsLookup!$A:$E,5,FALSE),"") -> Gynecological surgery | C25: =IFERROR(VLOOKUP(QuotationTool!$C$8&QuotationTool!$C$10&K25,BenefitsLookup!$A:$M,MATCH(QuotationTool!$D$10,BenefitsLookup!$A$3:$M$3,0),FALSE),"") -> 500000 | J25: Inpatient | K25: 17
A26: =IFERROR(VLOOKUP(QuotationTool!$C$8&QuotationTool!$C$10&BenefitsSchedule!K26,BenefitsLookup!$A:$E,5,FALSE),"") -> Cost of purchase of internal and external surgical implants, appliances, and prostheses (excluding dental fixtures) | C26: =IFERROR(VLOOKUP(QuotationTool!$C$8&QuotationTool!$C$10&K26,BenefitsLookup!$A:$M,MATCH(QuotationTool!$D$10,BenefitsLookup!$A$3:$M$3,0),FALSE),"") -> 500000 | J26: Inpatient | K26: 18
A27: =IFERROR(VLOOKUP(QuotationTool!$C$8&QuotationTool!$C$10&BenefitsSchedule!K27,BenefitsLookup!$A:$E,5,FALSE),"") -> Last Expense - Per Member (as a stand-alone benefit) | C27: =IFERROR(VLOOKUP(QuotationTool!$C$8&QuotationTool!$C$10&K27,BenefitsLookup!$A:$M,MATCH(QuotationTool!$D$10,BenefitsLookup!$A$3:$M$3,0),FALSE),"") -> 150000 | J27: Inpatient | K27: 19
A28: =IFERROR(VLOOKUP(QuotationTool!$C$8&QuotationTool!$C$10&BenefitsSchedule!K28,BenefitsLookup!$A:$E,5,FALSE),"") -> Passive War /Terrorism and Political Violence | C28: =IFERROR(VLOOKUP(QuotationTool!$C$8&QuotationTool!$C$10&K28,BenefitsLookup!$A:$M,MATCH(QuotationTool!$D$10,BenefitsLookup!$A$3:$M$3,0),FALSE),"") -> 1000000 | J28: Inpatient | K28: 20
A29: =IFERROR(VLOOKUP(QuotationTool!$C$8&QuotationTool!$C$10&BenefitsSchedule!K29,BenefitsLookup!$A:$E,5,FALSE),"") -> Maternity: Normal Delivery, Elective & subsequent Caesarean sections, First Ever Emergency Caesarean Section, Ectopic Pregnancy, Maternity Complications before & after delivery | C29: =IFERROR(VLOOKUP(QuotationTool!$C$8&QuotationTool!$C$10&K29,BenefitsLookup!$A:$M,MATCH(QuotationTool!$D$10,BenefitsLookup!$A$3:$M$3,0),FALSE),"") -> 200000 | J29: Inpatient | K29: 21
A30: =IFERROR(VLOOKUP(QuotationTool!$C$8&QuotationTool!$C$10&BenefitsSchedule!K30,BenefitsLookup!$A:$E,5,FALSE),"") -> Covid-19 Treatment (moderate cases) | C30: =IFERROR(VLOOKUP(QuotationTool!$C$8&QuotationTool!$C$10&K30,BenefitsLookup!$A:$M,MATCH(QuotationTool!$D$10,BenefitsLookup!$A$3:$M$3,0),FALSE),"") -> 250000 | J30: Inpatient | K30: 22
A31: =IFERROR(VLOOKUP(QuotationTool!$C$8&QuotationTool!$C$10&BenefitsSchedule!K31,BenefitsLookup!$A:$E,5,FALSE),"") -> Covid-19 Treatment (Critical cases requiring ICU/HDU) This is a cumulative amount that will be inclusive of any amounts already paid for in the treatment of moderate inpatient cases | C31: =IFERROR(VLOOKUP(QuotationTool!$C$8&QuotationTool!$C$10&K31,BenefitsLookup!$A:$M,MATCH(QuotationTool!$D$10,BenefitsLookup!$A$3:$M$3,0),FALSE),"") -> 1000000 | J31: Inpatient | K31: 23
A32: =IFERROR(VLOOKUP(QuotationTool!$C$8&QuotationTool!$C$10&BenefitsSchedule!K32,BenefitsLookup!$A:$E,5,FALSE),"") ->  | C32: =IFERROR(VLOOKUP(QuotationTool!$C$8&QuotationTool!$C$10&K32,BenefitsLookup!$A:$M,MATCH(QuotationTool!$D$10,BenefitsLookup!$A$3:$M$3,0),FALSE),"") ->  | J32: Inpatient | K32: 24
A33: =IFERROR(VLOOKUP(QuotationTool!$C$8&QuotationTool!$C$10&BenefitsSchedule!K33,BenefitsLookup!$A:$E,5,FALSE),"") ->  | C33: =IFERROR(VLOOKUP(QuotationTool!$C$8&QuotationTool!$C$10&K33,BenefitsLookup!$A:$M,MATCH(QuotationTool!$D$10,BenefitsLookup!$A$3:$M$3,0),FALSE),"") ->  | J33: Inpatient | K33: 25
A34: =IFERROR(IF(QuotationTool!$D$11>0,VLOOKUP(QuotationTool!$C$8&QuotationTool!$C$11&BenefitsSchedule!K34,BenefitsLookup!$A:$E,5,FALSE),""),"") -> Outpatient Overall Cover | C34: =IFERROR(VLOOKUP(QuotationTool!$C$8&QuotationTool!$C$11&BenefitsSchedule!K34,BenefitsLookup!$A:$V,MATCH(QuotationTool!$D$11,BenefitsLookup!$O$3:$V$3,0)+14,FALSE),"") -> 100000 | J34: Outpatient | K34: 1
A35: =IFERROR(IF(QuotationTool!$D$11>0,VLOOKUP(QuotationTool!$C$8&QuotationTool!$C$11&BenefitsSchedule!K35,BenefitsLookup!$A:$E,5,FALSE),""),"") ->  | C35: =IFERROR(VLOOKUP(QuotationTool!$C$8&QuotationTool!$C$11&BenefitsSchedule!K35,BenefitsLookup!$A:$V,MATCH(QuotationTool!$D$11,BenefitsLookup!$O$3:$V$3,0)+14,FALSE),"") ->  | J35: Outpatient | K35: 2
A36: =IFERROR(IF(QuotationTool!$D$11>0,VLOOKUP(QuotationTool!$C$8&QuotationTool!$C$11&BenefitsSchedule!K36,BenefitsLookup!$A:$E,5,FALSE),""),"") ->  | C36: =IFERROR(VLOOKUP(QuotationTool!$C$8&QuotationTool!$C$11&BenefitsSchedule!K36,BenefitsLookup!$A:$V,MATCH(QuotationTool!$D$11,BenefitsLookup!$O$3:$V$3,0)+14,FALSE),"") ->  | J36: Outpatient | K36: 3
A37: =IFERROR(IF(OR(QuotationTool!$D$13=PricingTable!$AD$3,QuotationTool!$D$13=PricingTable!$AE$3),VLOOKUP(QuotationTool!$C$8&QuotationTool!$C$13&BenefitsSchedule!K37,BenefitsLookup!$A:$E,5,FALSE),""),"") ->  | C37: =IFERROR(VLOOKUP(QuotationTool!$C$8&QuotationTool!$C$13&BenefitsSchedule!K37,BenefitsLookup!$A:$AD,MATCH(QuotationTool!$D$13,BenefitsLookup!$AC$3:$AD$3,0)+28,FALSE),"") ->  | J37: Dental & Optical | K37: 1
A38: =IFERROR(IF(OR(QuotationTool!$D$13=PricingTable!$AD$3,QuotationTool!$D$13=PricingTable!$AE$3),VLOOKUP(QuotationTool!$C$8&QuotationTool!$C$13&BenefitsSchedule!K38,BenefitsLookup!$A:$E,5,FALSE),""),"") ->  | C38: =IFERROR(VLOOKUP(QuotationTool!$C$8&QuotationTool!$C$13&BenefitsSchedule!K38,BenefitsLookup!$A:$AD,MATCH(QuotationTool!$D$13,BenefitsLookup!$AC$3:$AD$3,0)+28,FALSE),"") ->  | J38: Dental & Optical | K38: 2
A39: =IFERROR(IF(QuotationTool!$D$12>0,VLOOKUP(QuotationTool!$C$8&QuotationTool!$C$12&BenefitsSchedule!K39,BenefitsLookup!$A:$E,5,FALSE),""),"") ->  | C39: =IFERROR(VLOOKUP(QuotationTool!$C$8&QuotationTool!$C$12&BenefitsSchedule!K39,BenefitsLookup!$A:$AA,MATCH(QuotationTool!$D$12,BenefitsLookup!$X$3:$AA$3,0)+23,FALSE),"") ->  | J39: Maternity | K39: 0
A40: =IFERROR(IF(QuotationTool!$D$12>0,VLOOKUP(QuotationTool!$C$8&QuotationTool!$C$12&BenefitsSchedule!K40,BenefitsLookup!$A:$E,5,FALSE),""),"") ->  | C40: =IFERROR(VLOOKUP(QuotationTool!$C$8&QuotationTool!$C$12&BenefitsSchedule!K40,BenefitsLookup!$A:$AA,MATCH(QuotationTool!$D$12,BenefitsLookup!$X$3:$AA$3,0)+23,FALSE),"") ->  | K40: 1
A41: =IFERROR(IF(QuotationTool!$D$12>0,VLOOKUP(QuotationTool!$C$8&QuotationTool!$C$12&BenefitsSchedule!K41,BenefitsLookup!$A:$E,5,FALSE),""),"") ->  | C41: =IFERROR(VLOOKUP(QuotationTool!$C$8&QuotationTool!$C$12&BenefitsSchedule!K41,BenefitsLookup!$A:$AA,MATCH(QuotationTool!$D$12,BenefitsLookup!$X$3:$AA$3,0)+23,FALSE),"") ->  | J41: Maternity | K41: 2
A42: =IFERROR(IF(QuotationTool!$D$12>0,VLOOKUP(QuotationTool!$C$8&QuotationTool!$C$12&BenefitsSchedule!K42,BenefitsLookup!$A:$E,5,FALSE),""),"") ->  | C42: =IFERROR(VLOOKUP(QuotationTool!$C$8&QuotationTool!$C$12&BenefitsSchedule!K42,BenefitsLookup!$A:$AA,MATCH(QuotationTool!$D$12,BenefitsLookup!$X$3:$AA$3,0)+23,FALSE),"") ->  | J42: Maternity | K42: 3
A43: =IFERROR(IF(QuotationTool!$D$12>0,VLOOKUP(QuotationTool!$C$8&QuotationTool!$C$12&BenefitsSchedule!K43,BenefitsLookup!$A:$E,5,FALSE),""),"") ->  | C43: =IFERROR(VLOOKUP(QuotationTool!$C$8&QuotationTool!$C$12&BenefitsSchedule!K43,BenefitsLookup!$A:$AA,MATCH(QuotationTool!$D$12,BenefitsLookup!$X$3:$AA$3,0)+23,FALSE),"") ->  | J43: Maternity | K43: 4
A45: Payment Methods:
A46: BANK PAYMENT | B46: MPESA PAYMENT
A47: Bank Name : Kenya Commercial Bank | B47: Paybill No: 505800
A48: Account Name : Old Mutual General Insurance Company Ltd | B48: Acc No : Policy No./Member No.
A49: Account No: 1107154170
A50: Branch : Moi Avenue
A51: Swift Code : KCBLKENX , Branch Code : 100

Sheet BenefitsLookup (hidden)
B2: Benefit Table | F2: Inpatient | O2: Outpatient | X2: Maternity | AC2: Dental & Optical
A3: Combination | B3: Product | C3: Benefit | D3: Option | E3: Benefit | F3: 100000 | G3: 250000 | H3: 500000 | I3: 1000000 | J3: 3000000 | K3: 5000000 | L3: 10000000 | M3: 20000000 | O3: 10000 | P3: 25000 | Q3: 50000 | R3: 60000 | S3: 100000 | T3: 150000 | U3: 200000 | V3: 250000 | X3: 20000 | Y3: 40000 | Z3: 75000 | AA3: 100000 | AC3: 15,000 Each | AD3: 30,000 Dental & 25,000 Optical
A4: =B4&C4&D4 -> AfyaImaraInpatient1 | B4: =Lists!$B$4 -> AfyaImara | C4: Inpatient | D4: 1 | E4: Overall Limit | H4: 500000 | I4: 1000000 | J4: 3000000 | K4: 5000000 | L4: 10000000
A5: =B5&C5&D5 -> AfyaImaraInpatient2 | B5: =Lists!$B$4 -> AfyaImara | C5: Inpatient | D5: 2 | E5: Bed | H5: General Ward / Max Kes 8,000 | I5: General Ward / Max Kes 10,000 | J5: Standard Private Room / Max Kes 18,000 | K5: Standard Private Room / Max Kes 18,000 | L5: En Suite / Max Kes 26,000
A6: AfyaImaraInpatient3 | B6: =Lists!$B$4 -> AfyaImara | C6: Inpatient | D6: 3 | E6: Lodger Fee for Accompanying Parent/Guardian | H6: 12 Years | I6: 12 Years | J6: 12 Years | K6: 12 Years | L6: 12 Years
A7: AfyaImaraInpatient4 | B7: =Lists!$B$4 -> AfyaImara | C7: Inpatient | D7: 4 | E7: Emergency Evacuation Within East Africa | H7: Road Ambulance | I7: Road Ambulance | J7: Road & Air Ambulance | K7: Road & Air Ambulance | L7: Road & Air Ambulance
A8: AfyaImaraInpatient5 | B8: =Lists!$B$4 -> AfyaImara | C8: Inpatient | D8: 5 | E8: Accidents | H8: To overall Limit | I8: To overall Limit | J8: To overall Limit | K8: To overall Limit | L8: To overall Limit
A9: AfyaImaraInpatient6 | B9: =Lists!$B$4 -> AfyaImara | C9: Inpatient | D9: 6 | E9: Newly Diagnosed Chronic illnesses | H9: 350000 | I9: 700000 | J9: 2000000 | K9: 2500000 | L9: 3500000
A10: AfyaImaraInpatient7 | B10: =Lists!$B$4 -> AfyaImara | C10: Inpatient | D10: 7 | E10: Chronic, Pre-existing illnesses, Congenital Conditions & HIV/AIDS | H10: 250000 | I10: 400000 | J10: 700000 | K10: 800000 | L10: 1000000
A11: AfyaImaraInpatient8 | B11: =Lists!$B$4 -> AfyaImara | C11: Inpatient | D11: 8 | E11: Organ Transplant (cost of donor or securing the organ is excluded). This is in addition to the relevant condition’s benefit allocation. | H11: 100000 | I11: 200000 | J11: 200000 | K11: 300000 | L11: 500000
A12: AfyaImaraInpatient9 | B12: =Lists!$B$4 -> AfyaImara | C12: Inpatient | D12: 9 | E12: Psychiatric and Psychological Illnesses | H12: 200000 | I12: 300000 | J12: 500000 | K12: 500000 | L12: 700000
A13: AfyaImaraInpatient10 | B13: =Lists!$B$4 -> AfyaImara | C13: Inpatient | D13: 10 | E13: Post Hospitalization 21 days after discharge (On Reimbursement) | H13: 20000 | I13: 20000 | J13: 30000 | K13: 30000 | L13: 30000
A14: AfyaImaraInpatient11 | B14: =Lists!$B$4 -> AfyaImara | C14: Inpatient | D14: 11 | E14: Neo-natal and prematurity conditions. | H14: 200000 | I14: 250000 | J14: 400000 | K14: 400000 | L14: 500000
A15: AfyaImaraInpatient12 | B15: =Lists!$B$4 -> AfyaImara | C15: Inpatient | D15: 12 | E15: In patient non-accident related dental surgery/ treatment | H15: 150000 | I15: 150000 | J15: 200000 | K15: 200000 | L15: 250000
A16: AfyaImaraInpatient13 | B16: =Lists!$B$4 -> AfyaImara | C16: Inpatient | D16: 13 | E16: In patient non-accident related eye treatments excluding surgery for refractive errors and laser treatment | H16: 150000 | I16: 150000 | J16: 200000 | K16: 200000 | L16: 200000
A17: AfyaImaraInpatient14 | B17: =Lists!$B$4 -> AfyaImara | C17: Inpatient | D17: 14 | E17: Accident Related Inpatient Dental and Ophthalmological treatment | H17: 500000 | I17: 1000000 | J17: 3000000 | K17: 5000000 | L17: 5000000
A18: AfyaImaraInpatient15 | B18: =Lists!$B$4 -> AfyaImara | C18: Inpatient | D18: 15 | E18: Illness related reconstructive/plastic surgery (excludes cosmetic, obstetrics and gynecology related) | H18: 200000 | I18: 200000 | J18: 250000 | K18: 300000 | L18: 300000
A19: AfyaImaraInpatient16 | B19: =Lists!$B$4 -> AfyaImara | C19: Inpatient | D19: 16 | E19: Non accident related maxillofacial surgery (Excluding routine dental surgery and dental fixtures) | H19: 200000 | I19: 300000 | J19: 400000 | K19: 400000 | L19: 500000
A20: AfyaImaraInpatient17 | B20: =Lists!$B$4 -> AfyaImara | C20: Inpatient | D20: 17 | E20: Gynecological surgery | H20: 200000 | I20: 300000 | J20: 400000 | K20: 400000 | L20: 500000
A21: AfyaImaraInpatient18 | B21: =Lists!$B$4 -> AfyaImara | C21: Inpatient | D21: 18 | E21: Cost of purchase of internal and external surgical implants, appliances, and prostheses (excluding dental fixtures) | H21: 300000 | I21: 300000 | J21: 400000 | K21: 400000 | L21: 500000
A22: AfyaImaraInpatient19 | B22: =Lists!$B$4 -> AfyaImara | C22: Inpatient | D22: 19 | E22: Last Expense - Per Member (as a stand-alone benefit) | H22: 75000 | I22: 100000 | J22: 100000 | K22: 150000 | L22: 150000
A23: AfyaImaraInpatient20 | B23: =Lists!$B$4 -> AfyaImara | C23: Inpatient | D23: 20 | E23: Passive War /Terrorism and Political Violence | H23: 300000 | I23: 500000 | J23: 700000 | K23: 1000000 | L23: 1000000
A24: AfyaImaraInpatient21 | B24: =Lists!$B$4 -> AfyaImara | C24: Inpatient | D24: 21 | E24: Maternity: Normal Delivery, Elective & subsequent Caesarean sections, First Ever Emergency Caesarean Section, Ectopic Pregnancy, Maternity Complications before & after delivery | H24: 50000 | I24: 75000 | J24: 100000 | K24: 150000 | L24: 200000
A25: AfyaImaraInpatient22 | B25: =Lists!$B$4 -> AfyaImara | C25: Inpatient | D25: 22 | E25: Covid-19 Treatment (moderate cases) | H25: 250000 | I25: 250000 | J25: 250000 | K25: 250000 | L25: 250000
A26: =B26&C26&D26 -> AfyaImaraInpatient23 | B26: =Lists!$B$4 -> AfyaImara | C26: Inpatient | D26: 23 | E26: Covid-19 Treatment (Critical cases requiring ICU/HDU) This is a cumulative amount that will be inclusive of any amounts already paid for in the treatment of moderate inpatient cases | H26: 500000 | I26: 1000000 | J26: 1000000 | K26: 1000000 | L26: 1000000
A27: AfyaImaraOutpatient1 | B27: =Lists!$B$4 -> AfyaImara | C27: Outpatient | D27: 1 | E27: Outpatient Overall Cover | R27: 60000 | S27: 100000 | T27: 150000
A28: =B28&C28&D28 -> AfyaImara0 | B28: =Lists!$B$4 -> AfyaImara | D28: 0 | Y28: =Y3 -> 40000 | Z28: =Z3 -> 75000 | AA28: =AA3 -> 100000
A29: AfyaImara1 | B29: =Lists!$B$4 -> AfyaImara | D29: 1 | Y29: Full Maternity Limit | Z29: Full Maternity Limit | AA29: Full Maternity Limit
A30: AfyaImara2 | B30: =Lists!$B$4 -> AfyaImara | D30: 2 | Y30: Full Maternity Limit | Z30: Full Maternity Limit | AA30: Full Maternity Limit
A31: AfyaImara3 | B31: =Lists!$B$4 -> AfyaImara | D31: 3 | Y31: Full Maternity Limit | Z31: Full Maternity Limit | AA31: Full Maternity Limit
A32: AfyaImara4 | B32: =Lists!$B$4 -> AfyaImara | D32: 4 | Y32: Full Maternity Limit | Z32: Full Maternity Limit | AA32: Full Maternity Limit
A33: =B33&C33&D33 -> AfyaImara1 | B33: =Lists!$B$4 -> AfyaImara | D33: 1 | AC33: 15000 | AD33: 25000
A34: =B34&C34&D34 -> AfyaImara2 | B34: =Lists!$B$4 -> AfyaImara | D34: 2 | AC34: 15000 | AD34: 30000
A35: =B35&C35&D35 -> AfyaImara CountyInpatient1 | B35: =Lists!$B$5 -> AfyaImara County | C35: Inpatient | D35: 1 | E35: Overall Limit | F35: 100000 | G35: 250000 | H35: 500000 | I35: 1000000
A36: =B36&C36&D36 -> AfyaImara CountyInpatient2 | B36: =Lists!$B$5 -> AfyaImara County | C36: Inpatient | D36: 2 | E36: Bed | F36: General Ward / Max Kes 8,000 | G36: General Ward / Max Kes 8,000 | H36: General Ward / Max Kes 8,000 | I36: Standard Private / Max Kes 14,000
A37: AfyaImara CountyInpatient3 | B37: =Lists!$B$5 -> AfyaImara County | C37: Inpatient | D37: 3 | E37: Lodger Fee for Accompanying Parent | F37: 12 Years | G37: 12 Years | H37: 12 Years | I37: 12 Years
A38: AfyaImara CountyInpatient4 | B38: =Lists!$B$5 -> AfyaImara County | C38: Inpatient | D38: 4 | E38: Emergency Evacuation Within East Africa | F38: Road Ambulance | G38: Road Ambulance | H38: Road Ambulance | I38: Road & Air Ambulance
A39: AfyaImara CountyInpatient5 | B39: =Lists!$B$5 -> AfyaImara County | C39: Inpatient | D39: 5 | E39: Acute Illnesses, and Accidents | F39: To overall Limit | G39: To overall Limit | H39: To overall Limit | I39: To overall Limit
A40: AfyaImara CountyInpatient6 | B40: =Lists!$B$5 -> AfyaImara County | C40: Inpatient | D40: 6 | E40: Newly Diagnosed Chronic illnesses | F40: 50000 | G40: 50000 | H40: 300000 | I40: 400000
A41: AfyaImara CountyInpatient7 | B41: =Lists!$B$5 -> AfyaImara County | C41: Inpatient | D41: 7 | E41: Chronic, Pre-existing conditions, Congenital defects and genetic disorders, HIV/AIDS and related conditions | F41: 50000 | G41: 50000 | H41: 200000 | I41: 250000
A42: AfyaImara CountyInpatient8 | B42: =Lists!$B$5 -> AfyaImara County | C42: Inpatient | D42: 8 | E42: Organ Transplant (cost of donor or securing the organ is excluded) | F42: 50000 | G42: 50000 | H42: 200000 | I42: 250000
A43: AfyaImara CountyInpatient9 | B43: =Lists!$B$5 -> AfyaImara County | C43: Inpatient | D43: 9 | E43: Psychiatric and Psychological Illnesses | F43: 50000 | G43: 50000 | H43: 100000 | I43: 150000
A44: AfyaImara CountyInpatient10 | B44: =Lists!$B$5 -> AfyaImara County | C44: Inpatient | D44: 10 | E44: Post Hospitalization 21 days after discharge (On Reimbursement) | F44: 5000 | G44: 10000 | H44: 15000 | I44: 20000
A45: AfyaImara CountyInpatient11 | B45: =Lists!$B$5 -> AfyaImara County | C45: Inpatient | D45: 11 | E45: Neo-natal and prematurity conditions. | F45: 50000 | G45: 100000 | H45: 200000 | I45: 250000
A46: AfyaImara CountyInpatient12 | B46: =Lists!$B$5 -> AfyaImara County | C46: Inpatient | D46: 12 | E46: In patient non-accident related dental surgery/ treatment | F46: 30000 | G46: 60000 | H46: 100000 | I46: 120000
A47: AfyaImara CountyInpatient13 | B47: =Lists!$B$5 -> AfyaImara County | C47: Inpatient | D47: 13 | E47: In patient non-accident related eye treatments excluding surgery for refractive errors and laser treatment | F47: 30000 | G47: 60000 | H47: 100000 | I47: 120000
A48: =B48&C48&D48 -> AfyaImara CountyInpatient14 | B48: =Lists!$B$5 -> AfyaImara County | C48: Inpatient | D48: 14 | E48: Accident Related Inpatient Dental and Ophthalmological treatment | F48: 100000 | G48: 200000 | H48: 500000 | I48: 1000000
A49: AfyaImara CountyInpatient15 | B49: =Lists!$B$5 -> AfyaImara County | C49: Inpatient | D49: 15 | E49: Illness related reconstructive/plastic surgery (excludes cosmetic, obstetrics and gynecology related) | F49: 50000 | G49: 75000 | H49: 100000 | I49: 120000
A50: AfyaImara CountyInpatient16 | B50: =Lists!$B$5 -> AfyaImara County | C50: Inpatient | D50: 16 | E50: Non accident related maxillofacial surgery (Excluding routine dental surgery and dental fixtures) | F50: 30000 | G50: 75000 | H50: 150000 | I50: 200000
A51: AfyaImara CountyInpatient17 | B51: =Lists!$B$5 -> AfyaImara County | C51: Inpatient | D51: 17 | E51: Gynecological surgery | F51: 40000 | G51: 100000 | H51: 200000 | I51: 300000
A52: AfyaImara CountyInpatient18 | B52: =Lists!$B$5 -> AfyaImara County | C52: Inpatient | D52: 18 | E52: Internal and external surgical implants, appliances, joint replacements, and prostheses (excluding dental fixtures) | F52: 60000 | G52: 150000 | H52: 250000 | I52: 300000
A53: AfyaImara CountyInpatient19 | B53: =Lists!$B$5 -> AfyaImara County | C53: Inpatient | D53: 19 | E53: Last Expense - Per Member | F53: 50000 | G53: 50000 | H53: 75000 | I53: 100000
A54: AfyaImara CountyInpatient20 | B54: =Lists!$B$5 -> AfyaImara County | C54: Inpatient | D54: 20 | E54: Passive War /Terrorism and Political Violence | F54: 50000 | G54: 50000 | H54: 300000 | I54: 400000
A55: AfyaImara CountyInpatient21 | B55: =Lists!$B$5 -> AfyaImara County | C55: Inpatient | D55: 21 | E55: Home Nursing (Subject to Pre-authorization) | F55: 90 days | G55: 90 days | H55: 90 days | I55: 90 days
A56: AfyaImara CountyInpatient22 | B56: =Lists!$B$5 -> AfyaImara County | C56: Inpatient | D56: 22 | E56: Maternity: Subject to one (1) waiting period
A57: AfyaImara CountyInpatient23 | B57: =Lists!$B$5 -> AfyaImara County | C57: Inpatient | D57: 23 | E57: Normal Delivery, Elective & subsequent Caesarean sections, First Ever Emergency Caesarean Section, Including Ectopic Pregnancy, Maternity Complications before & after delivery | F57: Not Covered | G57: 30000 | H57: 40000 | I57: 50000
A58: =B58&C58&D58 -> AfyaImara CountyInpatient24 | B58: =Lists!$B$5 -> AfyaImara County | C58: Inpatient | D58: 24 | E58: Covid-19 Treatment (moderate cases) | F58: 100000 | G58: 250000 | H58: 250000 | I58: 250000
A59: AfyaImara CountyInpatient25 | B59: =Lists!$B$5 -> AfyaImara County | C59: Inpatient | D59: 25 | E59: Covid-19 Treatment (Critical cases requiring ICU/HDU) This is a cumulative amount that will be inclusive of any amounts already paid for in the treatment of moderate inpatient cases | F59: 100000 | G59: 250000 | H59: 500000 | I59: 1000000
A60: =B60&C60&D60 -> AfyaImara County1 | B60: =Lists!$B$5 -> AfyaImara County | D60: 1 | E60: Outpatient Overall Cover | O60: =O3 -> 10000 | P60: =P3 -> 25000 | Q60: =Q3 -> 50000
A61: =B61&C61&D61 -> AfyaImara County0 | B61: =Lists!$B$5 -> AfyaImara County | D61: 0 | X61: =X3 -> 20000 | Y61: =Y3 -> 40000
A62: AfyaImara County1 | B62: =Lists!$B$5 -> AfyaImara County | D62: 1 | X62: Full Maternity Limit | Y62: Full Maternity Limit
A63: AfyaImara County2 | B63: =Lists!$B$5 -> AfyaImara County | D63: 2 | X63: Full Maternity Limit | Y63: Full Maternity Limit
A64: AfyaImara County3 | B64: =Lists!$B$5 -> AfyaImara County | D64: 3 | X64: Full Maternity Limit | Y64: Full Maternity Limit
A65: AfyaImara County4 | B65: =Lists!$B$5 -> AfyaImara County | D65: 4 | X65: Full Maternity Limit | Y65: Full Maternity Limit
A66: =B66&C66&D66 -> AfyaImara SeniorsInpatient1 | B66: =Lists!$B$6 -> AfyaImara Seniors | C66: Inpatient | D66: 1 | E66: Overall Limit | H66: 500000 | I66: 1000000 | J66: 3000000 | K66: 5000000 | L66: 10000000
A67: =B67&C67&D67 -> AfyaImara SeniorsInpatient2 | B67: =Lists!$B$6 -> AfyaImara Seniors | C67: Inpatient | D67: 2 | E67: Bed | H67: General Ward / Max Kes 8,000 | I67: General Ward / Max Kes 10,000 | J67: Standard Private Room / Max Kes 18,000 | K67: Standard Private Room / Max Kes 18,000 | L67: En Suite / Max Kes 26,000
A68: AfyaImara SeniorsInpatient3 | B68: =Lists!$B$6 -> AfyaImara Seniors | C68: Inpatient | D68: 3 | E68: Emergency Evacuation Within East Africa | H68: Road Ambulance | I68: Road Ambulance | J68: Road & Air Ambulance | K68: Road & Air Ambulance | L68: Road & Air Ambulance
A69: AfyaImara SeniorsInpatient4 | B69: =Lists!$B$6 -> AfyaImara Seniors | C69: Inpatient | D69: 4 | E69: Accidents | H69: To overall Limit | I69: To overall Limit | J69: To overall Limit | K69: To overall Limit | L69: To overall Limit
A70: AfyaImara SeniorsInpatient5 | B70: =Lists!$B$6 -> AfyaImara Seniors | C70: Inpatient | D70: 5 | E70: Acute Conditions | H70: To overall Limit | I70: To overall Limit | J70: To overall Limit | K70: To overall Limit | L70: To overall Limit
A71: AfyaImara SeniorsInpatient6 | B71: =Lists!$B$6 -> AfyaImara Seniors | C71: Inpatient | D71: 6 | E71: Newly Diagnosed Chronic illnesses after inception of cover | H71: 350000 | I71: 700000 | J71: 2000000 | K71: 2500000 | L71: 3500000
A72: AfyaImara SeniorsInpatient7 | B72: =Lists!$B$6 -> AfyaImara Seniors | C72: Inpatient | D72: 7 | E72: Chronic, Pre-existing illnesses, Congenital Conditions & HIV/AIDS | H72: 250000 | I72: 400000 | J72: 700000 | K72: 800000 | L72: 1000000
A73: AfyaImara SeniorsInpatient8 | B73: =Lists!$B$6 -> AfyaImara Seniors | C73: Inpatient | D73: 8 | E73: Organ Transplant (cost of donor or securing the organ is excluded). This is in addition to the relevant condition’s benefit allocation. | H73: 100000 | I73: 200000 | J73: 200000 | K73: 300000 | L73: 500000
A74: AfyaImara SeniorsInpatient9 | B74: =Lists!$B$6 -> AfyaImara Seniors | C74: Inpatient | D74: 9 | E74: Psychiatric and Psychological Illnesses | H74: 200000 | I74: 300000 | J74: 500000 | K74: 500000 | L74: 700000
A75: AfyaImara SeniorsInpatient10 | B75: =Lists!$B$6 -> AfyaImara Seniors | C75: Inpatient | D75: 10 | E75: Post Hospitalization 21 days after discharge (On Reimbursement) | H75: 20000 | I75: 20000 | J75: 30000 | K75: 30000 | L75: 30000
A76: AfyaImara SeniorsInpatient11 | B76: =Lists!$B$6 -> AfyaImara Seniors | C76: Inpatient | D76: 11 | E76: In patient non-accident related dental surgery/ treatment | H76: 150000 | I76: 150000 | J76: 200000 | K76: 200000 | L76: 250000
A77: AfyaImara SeniorsInpatient12 | B77: =Lists!$B$6 -> AfyaImara Seniors | C77: Inpatient | D77: 12 | E77: In patient non-accident related eye treatments excluding surgery for refractive errors and laser treatment | H77: 150000 | I77: 150000 | J77: 200000 | K77: 200000 | L77: 200000
A78: AfyaImara SeniorsInpatient13 | B78: =Lists!$B$6 -> AfyaImara Seniors | C78: Inpatient | D78: 13 | E78: Accident Related Inpatient Dental and Ophthalmological treatment | H78: 500000 | I78: 1000000 | J78: 3000000 | K78: 5000000 | L78: 5000000
A79: AfyaImara SeniorsInpatient14 | B79: =Lists!$B$6 -> AfyaImara Seniors | C79: Inpatient | D79: 14 | E79: Illness related reconstructive/plastic surgery (excludes cosmetic, obstetrics and gynecology related) | H79: 200000 | I79: 200000 | J79: 250000 | K79: 300000 | L79: 300000
A80: AfyaImara SeniorsInpatient15 | B80: =Lists!$B$6 -> AfyaImara Seniors | C80: Inpatient | D80: 15 | E80: Non accident related maxillofacial surgery (Excluding routine dental surgery and dental fixtures) | H80: 200000 | I80: 300000 | J80: 400000 | K80: 400000 | L80: 500000
A81: AfyaImara SeniorsInpatient16 | B81: =Lists!$B$6 -> AfyaImara Seniors | C81: Inpatient | D81: 16 | E81: Gynecological surgery | H81: 200000 | I81: 300000 | J81: 400000 | K81: 400000 | L81: 500000
A82: AfyaImara SeniorsInpatient17 | B82: =Lists!$B$6 -> AfyaImara Seniors | C82: Inpatient | D82: 17 | E82: Cost of purchase of internal and external surgical implants, appliances, and prostheses (excluding dental fixtures) | H82: 300000 | I82: 300000 | J82: 400000 | K82: 400000 | L82: 500000
A83: AfyaImara SeniorsInpatient18 | B83: =Lists!$B$6 -> AfyaImara Seniors | C83: Inpatient | D83: 18 | E83: Last Expense - Per Member (as a stand-alone benefit) | H83: 75000 | I83: 100000 | J83: 100000 | K83: 150000 | L83: 150000
A84: AfyaImara SeniorsInpatient19 | B84: =Lists!$B$6 -> AfyaImara Seniors | C84: Inpatient | D84: 19 | E84: Passive War /Terrorism and Political Violence | H84: 300000 | I84: 500000 | J84: 700000 | K84: 1000000 | L84: 1000000
A85: AfyaImara SeniorsInpatient20 | B85: =Lists!$B$6 -> AfyaImara Seniors | C85: Inpatient | D85: 20 | E85: Covid-19 Treatment (moderate cases) | H85: 250000 | I85: 250000 | J85: 250000 | K85: 250000 | L85: 250000
A86: AfyaImara SeniorsInpatient21 | B86: =Lists!$B$6 -> AfyaImara Seniors | C86: Inpatient | D86: 21 | E86: Covid-19 Treatment (Critical cases requiring ICU/HDU) | H86: 500000 | I86: 1000000 | J86: 1000000 | K86: 1000000 | L86: 1000000
A87: =B87&C87&D87 -> AfyaImara SeniorsOutpatient1 | B87: =Lists!$B$6 -> AfyaImara Seniors | C87: Outpatient | D87: 1 | E87: Outpatient Overall Cover | S87: =S3 -> 100000 | T87: =T3 -> 150000 | U87: =U3 -> 200000
A88: =B88&C88&D88 -> AfyaImara JuniorInpatient1 | B88: =Lists!$B$7 -> AfyaImara Junior | C88: Inpatient | D88: 1 | E88: Overall Limit | H88: 500000 | I88: 1000000 | J88: 3000000 | K88: 5000000
A89: =B89&C89&D89 -> AfyaImara JuniorInpatient2 | B89: =Lists!$B$7 -> AfyaImara Junior | C89: Inpatient | D89: 2 | E89: Bed | H89: General Ward | I89: General Ward | J89: Private Room. | K89: Private Room.
A90: AfyaImara JuniorInpatient3 | B90: =Lists!$B$7 -> AfyaImara Junior | C90: Inpatient | D90: 3 | H90: Max Kes 8,000 | I90: Max Kes 8,000 | J90: Max Kes 17,000 | K90: Max Kes 17,000
A91: AfyaImara JuniorInpatient4 | B91: =Lists!$B$7 -> AfyaImara Junior | C91: Inpatient | D91: 4 | E91: Lodger Fee for Accompanying Parent | H91: Children 12 Years and below | I91: Children 12 Years and below | J91: Children 12 Years and below | K91: Children 12 Years and below
A92: AfyaImara JuniorInpatient5 | B92: =Lists!$B$7 -> AfyaImara Junior | C92: Inpatient | D92: 5 | E92: Emergency Evacuation Within East Africa | H92: Road Ambulance | I92: Road Ambulance | J92: Air Ambulance & | K92: Air Ambulance &
A93: AfyaImara JuniorInpatient6 | B93: =Lists!$B$7 -> AfyaImara Junior | C93: Inpatient | D93: 6 | J93: Road Ambulance | K93: Road Ambulance
A94: AfyaImara JuniorInpatient7 | B94: =Lists!$B$7 -> AfyaImara Junior | C94: Inpatient | D94: 7 | E94: Pre-existing illnesses | H94: Kes 250,000 | I94: Kes 450,000 | J94: Kes 750,000 | K94: Kes 750,000
A95: AfyaImara JuniorInpatient8 | B95: =Lists!$B$7 -> AfyaImara Junior | C95: Inpatient | D95: 8 | E95: Organ Transplant (cost of donor or securing the organ is excluded) | H95: Kes 500,000 | I95: Kes 500,000 | J95: Kes 500,000 | K95: Kes 500,000
A96: AfyaImara JuniorInpatient9 | B96: =Lists!$B$7 -> AfyaImara Junior | C96: Inpatient | D96: 9 | E96: Newly Diagnosed Chronic illnesses | H96: Kes 250,000 | I96: Kes 500,000 | J96: Kes 1,000,000 | K96: Kes 1,500,000
A97: AfyaImara JuniorInpatient10 | B97: =Lists!$B$7 -> AfyaImara Junior | C97: Inpatient | D97: 10 | E97: Psychiatric and Psychological Illnesses | H97: Kes 250,000 | I97: Kes 300,000 | J97: Kes 500,000 | K97: Kes 1,000,000
A98: AfyaImara JuniorInpatient11 | B98: =Lists!$B$7 -> AfyaImara Junior | C98: Inpatient | D98: 11 | E98: Post Hospitalization 21 days after discharge | H98: Kes 15,000 | I98: Kes 15,000 | J98: Kes 20,000 | K98: Kes 30,000
A99: AfyaImara JuniorInpatient12 | B99: =Lists!$B$7 -> AfyaImara Junior | C99: Inpatient | D99: 12 | E99: (Related to Reason for Admission)
A100: AfyaImara JuniorInpatient13 | B100: =Lists!$B$7 -> AfyaImara Junior | C100: Inpatient | D100: 13 | E100: Congenital condition, neo-natal and prematurity conditions. | H100: Kes 200,000 | I100: Kes 250,000 | J100: Kes 300,000 | K100: Kes 350,000
A101: AfyaImara JuniorInpatient14 | B101: =Lists!$B$7 -> AfyaImara Junior | C101: Inpatient | D101: 14 | E101: Non - accidental dental in-patient illnesses. | H101: Kes 200,000 | I101: Kes 300,000 | J101: Kes 300,000 | K101: Kes 350,000
A102: AfyaImara JuniorInpatient15 | B102: =Lists!$B$7 -> AfyaImara Junior | C102: Inpatient | D102: 15 | E102: Non - accidental Optical in-patient illnesses. | H102: Kes 200,000 | I102: Kes 300,000 | J102: Kes 300,000 | K102: Kes 350,000
A103: AfyaImara JuniorInpatient16 | B103: =Lists!$B$7 -> AfyaImara Junior | C103: Inpatient | D103: 16 | E103: Accident Related Dental and Optical treatment | H103: Full Inpatient Limit | I103: Full Inpatient Limit | J103: Full Inpatient Limit | K103: Full Inpatient Limit
A104: AfyaImara JuniorInpatient17 | B104: =Lists!$B$7 -> AfyaImara Junior | C104: Inpatient | D104: 17 | E104: External prosthesis and external medical appliances. Includes wheelchairs, implants | H104: Kes 300,000 | I104: Kes 400,000 | J104: Kes 400,000 | K104: Kes 500,000
A105: AfyaImara JuniorInpatient18 | B105: =Lists!$B$7 -> AfyaImara Junior | C105: Inpatient | D105: 18 | E105: Last Expense | H105: Kes 50,000 Per Person | I105: Kes 75,000 Per Person | J105: Kes 100,000 Per Person | K105: Kes 150,000 Per Person
A106: AfyaImara JuniorInpatient19 | B106: =Lists!$B$7 -> AfyaImara Junior | C106: Inpatient | D106: 19 | E106: Passive War /Terrorism and Political Violence treatments | H106: Kes 500,000 | I106: Kes 1,000,000 | J106: Kes 2,000,000 | K106: Kes 2,000,000
A107: AfyaImara JuniorInpatient20 | B107: =Lists!$B$7 -> AfyaImara Junior | C107: Inpatient | D107: 20 | E107: Home Nursing(Subject to Pre-authorization) | H107: 90 Days | I107: 90 Days | J107: 90 Days | K107: 90 Days
A108: AfyaImara ExecutiveInpatient1 | B108: =Lists!$B$8 -> AfyaImara Executive | C108: Inpatient | D108: 1 | E108: Inpatient Overall Cover (Kshs) | L108: 10000000 | M108: 20000000
A109: =B109&C109&D109 -> AfyaImara ExecutiveInpatient2 | B109: =Lists!$B$8 -> AfyaImara Executive | C109: Inpatient | D109: 2 | E109: Bed limits | L109: Ensuite (up to 40,000 per day) | M109: Ensuite (up to 40,000 per day)
A110: AfyaImara ExecutiveInpatient3 | B110: =Lists!$B$8 -> AfyaImara Executive | C110: Inpatient | D110: 3 | E110: Inpatient expenses related to acute conditions or accidents | L110: Fully Covered | M110: Fully Covered
A111: AfyaImara ExecutiveInpatient4 | B111: =Lists!$B$8 -> AfyaImara Executive | C111: Inpatient | D111: 4 | E111: Pre-existing chronic conditions on full disclosure at the time of joining after one year waiting period | L111: 2000000 | M111: 3000000
A112: AfyaImara ExecutiveInpatient5 | B112: =Lists!$B$8 -> AfyaImara Executive | C112: Inpatient | D112: 5 | E112: Chronic conditions diagnosed after inception of cover | L112: 2000000 | M112: 5000000
A113: AfyaImara ExecutiveInpatient6 | B113: =Lists!$B$8 -> AfyaImara Executive | C113: Inpatient | D113: 6 | E113: Gynecological surgery (one year waiting period) | L113: 500000 | M113: 750000
A114: AfyaImara ExecutiveInpatient7 | B114: =Lists!$B$8 -> AfyaImara Executive | C114: Inpatient | D114: 7 | E114: Psychiatry and psychotherapy after one year of cover | L114: 500000 | M114: 750000
A115: AfyaImara ExecutiveInpatient8 | B115: =Lists!$B$8 -> AfyaImara Executive | C115: Inpatient | D115: 8 | E115: Cancer treatment after one year of cover | L115: 2000000 | M115: 3000000
A116: AfyaImara ExecutiveInpatient9 | B116: =Lists!$B$8 -> AfyaImara Executive | C116: Inpatient | D116: 9 | E116: Congenital defects and genetic disorders after one year of cover | L116: 500000 | M116: 750000
A117: AfyaImara ExecutiveInpatient10 | B117: =Lists!$B$8 -> AfyaImara Executive | C117: Inpatient | D117: 10 | E117: HIV / AIDS and related conditions after one year of cover | L117: 2000000 | M117: 4000000
A118: AfyaImara ExecutiveInpatient11 | B118: =Lists!$B$8 -> AfyaImara Executive | C118: Inpatient | D118: 11 | E118: Illness related reconstructive/plastic surgery from the third year of cover (excludes cosmetic, obstetrics and gynecology related) | L118: 250000 | M118: 500000
A119: AfyaImara ExecutiveInpatient12 | B119: =Lists!$B$8 -> AfyaImara Executive | C119: Inpatient | D119: 12 | E119: Non accident related maxillofacial surgery (Excluding routine dental surgery and dental fixtures) after one year of cover | L119: 500000 | M119: 750000
A120: AfyaImara ExecutiveInpatient13 | B120: =Lists!$B$8 -> AfyaImara Executive | C120: Inpatient | D120: 13 | E120: In patient non-accident related eye treatments excluding surgery for refractive errors and laser treatment (one year waiting period) | L120: 250000 | M120: 500000
A121: AfyaImara ExecutiveInpatient14 | B121: =Lists!$B$8 -> AfyaImara Executive | C121: Inpatient | D121: 14 | E121: In patient non-accident related dental surgery/treatment (after six months of cover and subject to written pre-authorization) | L121: 250000 | M121: 500000
A122: AfyaImara ExecutiveInpatient15 | B122: =Lists!$B$8 -> AfyaImara Executive | C122: Inpatient | D122: 15 | E122: Organ transplantation after two years of cover (cost of donor or securing the organ is excluded) | L122: 500000 | M122: 750000
A123: AfyaImara ExecutiveInpatient16 | B123: =Lists!$B$8 -> AfyaImara Executive | C123: Inpatient | D123: 16 | E123: Internal and external surgical implants and joint replacements (excluding dental fixtures) after one year of cover | L123: 750000 | M123: 1000000
A124: AfyaImara ExecutiveInpatient17 | B124: =Lists!$B$8 -> AfyaImara Executive | C124: Inpatient | D124: 17 | E124: Post-hospitalization treatment related to cause of pre-authorization (limited to the first 3 weeks after discharge) | L124: 150000 | M124: 200000
A125: AfyaImara ExecutiveInpatient18 | B125: =Lists!$B$8 -> AfyaImara Executive | C125: Inpatient | D125: 18 | E125: Last Expenses per member (death as a result of covered conditions) | L125: 300000 | M125: 350000
A126: =B126&C126&D126 -> AfyaImara ExecutiveInpatient19 | B126: =Lists!$B$8 -> AfyaImara Executive | C126: Inpatient | D126: 19
A127: AfyaImara ExecutiveInpatient20 | B127: =Lists!$B$8 -> AfyaImara Executive | C127: Inpatient | D127: 20 | E127: Maternity- As a limit within Overall Inpatient Cover | L127: 400000 | M127: 600000
A128: AfyaImara ExecutiveInpatient21 | B128: =Lists!$B$8 -> AfyaImara Executive | C128: Inpatient | D128: 21
A129: AfyaImara ExecutiveOutpatient1 | B129: =Lists!$B$8 -> AfyaImara Executive | C129: Outpatient | D129: 1 | E129: Outpatient Overall Cover | U129: =U3 -> 200000 | V129: =V3 -> 250000
A130: AfyaImara ExecutiveOutpatient2 | B130: =Lists!$B$8 -> AfyaImara Executive | C130: Outpatient | D130: 2 | E130: WELLNESS PACKAGE (Principal Member & Spouse Only) | U130: 50000 | V130: 50000
A131: AfyaImara ExecutiveOutpatient3 | B131: =Lists!$B$8 -> AfyaImara Executive | C131: Outpatient | D131: 3 | E131: Dental/Optical Checkups | U131: 25000 | V131: 25000

Sheet AfyaImara (hidden)
C1: INPATIENT | J1: Outpatient Rates
B2: AfyaImara Rates | H2: OP Option | I2: Family Size | J2: Limit | K2: 50000 | L2: 60000 | M2: 100000 | N2: 150000 | O2: 200000 | P2: N/A
B3: 19 yrs - 29 yrs | C3: 500000 | D3: 1000000 | E3: 3000000 | F3: 5000000 | G3: 10000000 | I3: 1 | J3: M | K3: 32934 | L3: 33266 | M3: 35226 | N3: 37892 | O3: 41512
B4: Principal Member | C4: 32256.6875 | D4: 34283.6875 | E4: 49171.6875 | F4: 53024.6875 | G4: 60534.6875 | H4: Yes | I4: 2 | J4: M+1 | K4: 44986 | L4: 49269 | M4: 66533 | N4: 70452 | O4: 77987
B5: Spouse | C5: 23900 | D5: 25582 | E5: 38516 | F5: 41671 | G5: 46337 | H5: No | I5: 3 | J5: M+2 | K5: 48748 | L5: 54844 | M5: 82895 | N5: 88794 | O5: 92489
B6: Child (0 -18 yrs) | C6: 13929 | D6: 17102 | E6: 26795 | F6: 28496 | G6: 31578 | I6: 4 | J6: M+3 | K6: 48797 | L6: 55910 | M6: 98147 | N6: 106762 | O6: 111223
B7: 30 yrs - 40 yrs | I7: 5 | J7: M+4 | K7: 48846 | L7: 57804 | M7: 98245 | N7: 121829 | O7: 126966
B8: Principal Member | C8: 33863 | D8: 35223 | E8: 52342 | F8: 56437 | G8: 64692 | I8: 6 | J8: M+5 | K8: 49339 | L8: 58095 | M8: 99028 | N8: 136895 | O8: 142709
B9: Spouse | C9: 25023 | D9: 26785 | E9: 40457 | F9: 43799 | G9: 48736 | I9: 7 | J9: M+6 | K9: 49837 | L9: 58387 | M9: 99282 | N9: 148202 | O9: 157539
B10: Child (0 -18 yrs) | C10: 13929 | D10: 17102 | E10: 26795 | F10: 28496 | G10: 31578
B11: 41 yrs - 50 yrs
B12: Principal Member | C12: 38058.84375 | D12: 39384.84375 | E12: 62184.84375 | F12: 62633.84375 | G12: 68869.84375 | J12: YES | K12: NO
B13: Spouse | C13: 26128 | D13: 27925 | E13: 46043 | F13: 46446 | G13: 49650
B14: Child (0 -18 yrs) | C14: 13929 | D14: 17102 | E14: 26795 | F14: 28496 | G14: 31578 | I14: =MATCH("M+1",$J$3:$J$9,0) -> 2
B15: 51 yrs - 65 yrs
B16: Principal Member | C16: 55550.125 | D16: 56704.125 | E16: 76889.125 | F16: 82030.125 | G16: 91449.125 | J16: OP LIMITS RULES
B17: Spouse | C17: 31575 | D17: 34484 | E17: 50161 | F17: 54280 | G17: 60121 | I17: IP | J17: OP Limit
B18: Child (0 -18 yrs) | C18: 13929 | D18: 17102 | E18: 26795 | F18: 28496 | G18: 31578 | I18: 500000 | J18: 60000
B19: 66 Years and Above | I19: 1000000 | J19: 60000
B20: Principal Member | C20: 82829 | D20: 95227 | E20: 142417 | F20: 162180 | G20: 185511 | I20: 3000000 | J20: 100000
B21: Spouse | C21: 64526 | D21: 78683 | E21: 115311 | F21: 131186 | G21: 145655 | I21: 5000000 | J21: 200000
B22: Child (0 -18 yrs.) | C22: 13929 | D22: 17102 | E22: 26795 | F22: 28496 | G22: 31578 | I22: 10000000 | J22: 200000
B24: Outpatient Per Life
B25: Option | C25: Limit | D25: Premium/Person
B26: Option 1 | C26: 150000 | D26: 33800
B27: Option 2 | C27: 100000 | D27: 30732
B28: Option 3 | C28: 60000 | D28: 26247
B30: Maternity Per Family
B31: Option | C31: Limit | D31: Premium/Family
B32: Option 1 | C32: 100000 | D32: 25650
B33: Option 2 | C33: 75000 | D33: 17100
B34: Option 3 | C34: 40000 | D34: 10830
B36: Optical & Dental Per Life
B37: Option | C37: Dental Limit | D37: Optical Limit | E37: Premium/Life
B38: 1 | C38: 15000 | D38: 15000 | E38: 12190
B39: 2 | C39: 30000 | D39: 25000 | E39: 18390

Sheet AfyaImaraCounty (hidden)
B2: AfyaImara County Rates | I2: Family Size | J2: Limit | K2: 25000 | L2: 40000 | M2: 50000 | N2: N/A
B3: 19 yrs. - 29 yrs. | C3: 100000 | D3: 250000 | E3: 500000 | F3: 1000000 | I3: 1 | J3: M | K3: 9390 | L3: 10821 | M3: 11775
B4: Principal Member | C4: 11184 | D4: 14833 | E4: 23189 | F4: 26908 | I4: 2 | J4: M+1 | K4: 10841 | L4: 18050 | M4: 22856
B5: Spouse | C5: 9438 | D5: 11223 | E5: 17818 | F5: 20488 | I5: 3 | J5: M+2 | K5: 15921 | L5: 22120 | M5: 26252
B6: Child (0 -18 yrs.) | C6: 5438 | D6: 6725 | E6: 10552 | F6: 13856 | I6: 4 | J6: M+3 | K6: 21002 | L6: 26647 | M6: 30411
B7: 30 yrs. - 40 yrs. | I7: 5 | J7: M+4 | K7: 23856 | L7: 30788 | M7: 35408
B8: Principal Member | C8: 11752 | D8: 15471 | E8: 24203 | F8: 28068 | I8: 6 | J8: M+5 | K8: 24603 | L8: 34661 | M8: 41366
B9: Spouse | C9: 9846 | D9: 11681 | E9: 18638 | F9: 21428
B10: Child (0 -18 yrs.) | C10: 5438 | D10: 6725 | E10: 10552 | F10: 13856
B11: 41 yrs. - 50 yrs.
B12: Principal Member | C12: 14100 | D12: 18111 | E12: 28495 | F12: 32864
B13: Spouse | C13: 11722 | D13: 13791 | E13: 22072 | F13: 25262
B14: Child (0 -18 yrs.) | C14: 5438 | D14: 6725 | E14: 10552 | F14: 13856
B15: 51 yrs. - 70 yrs.
B16: Principal Member | C16: 17662 | D16: 22117 | E16: 34445 | F16: 40144
B17: Spouse | C17: 14600 | D17: 17027 | E17: 26622 | F17: 31142
B18: Child (0 -18 yrs.) | C18: 5438 | D18: 6725 | E18: 10552 | F18: 13856
B20: Outpatient Per Life
B21: Option | C21: Limit | D21: Premium/Life
B22: Option 1 | C22: 50000 | D22: 10239
B23: Option 2 | C23: 25000 | D23: 8165
B24: Option 3 | C24: 10000 | D24: 5053
B26: Maternity Per Family
B27: Option | C27: Limit | D27: Premium/Family
B28: Option 1 | C28: 40000 | D28: 9500
B29: Option 2 | C29: 20000 | D29: 5700

Sheet AfyaImaraSeniors (hidden)
B2: AfyaImara Seniors Rates
B3: Inpatient Per Person | C3: 500000 | D3: 1000000 | E3: 3000000 | F3: 5000000 | G3: 10000000
B4: Rate Per Person | C4: 116352 | D4: 132299 | E4: 178535 | F4: 206231 | G4: 229049
B6: Outpatient Per Person | C6: 100000 | D6: 150000 | E6: 200000
B7: Rate Per Person | C7: 94968 | D7: 101270 | E7: 107534
B9: Dental and Optical Rates
B10: Limit | C10: Dental 20,000 | D10: Optical 20,000
B11: Per Person | C11: 16176 | D11: 16176 | E11: =D11+C11 -> 32352

Sheet AfyaImaraExecutive (hidden)
D2: Annual Cover limits
B3: Age Band | C3: Beneficiary | D3: 10000000 | E3: 20000000
B5: 19 yrs - 29 yrs | C5: Principal Member | D5: 222424 | E5: 259199
C6: Spouse | D6: 195174 | E6: 228056
C7: Child (0 months to 18 yrs) | D7: 97360 | E7: 111268
B9: 30 yrs - 40 yrs | C9: Principal Member | D9: 231972 | E9: 270111
C10: Spouse | D10: 203059 | E10: 237067
C11: Child (0 months to 18 yrs) | D11: 97360 | E11: 111268
B13: 41 yrs - 50 yrs | C13: Principal Member | D13: 243559 | E13: 283353
C14: Spouse | D14: 211374 | E14: 246570
C15: Child (0 months to 18 yrs) | D15: 97360 | E15: 111268
B17: 51 yrs - 65 yrs | C17: Principal Member | D17: 280840 | E17: 325959
C18: Spouse | D18: 241896 | E18: 281452
C19: Child (0 months to 18 yrs) | D19: 97360 | E19: 111268
B21: 65 yrs - 80 yrs | C21: Principal Member | D21: 556653 | E21: 641175
C22: Spouse | D22: 471379 | E22: 543718
C23: Child (0 months to 18 yrs) | D23: 97360 | E23: 111268
B26: Cover Limit | C26: 200000 | D26: 250000
B27: 0 months to 18 yrs | C27: 43029 | D27: 47030
B28: 19 yrs - 29 yrs | C28: 54286 | D28: 59334
B29: 30 yrs - 40 yrs | C29: 64577 | D29: 70582
B30: 41 yrs - 50 yrs | C30: 79820 | D30: 87243
B31: 51 yrs - 65 yrs | C31: 95064 | D31: 103904
B32: 65 yrs - 80 yrs | C32: 102605 | D32: 112146
